Publisher Label,Publisher URI,"Supplier","Net Amount £","Organisational Unit","Merchant Category Code","Purpose","Payment Date"
"Wolverhampton City Council","http://opendatacommunities.org/id/metropolitan-district-council/wolverhampton","ALDI 48 772",3.56,"Key to Inspiration","5411","Provisions (Not for resale)","30/04/2019"
"Wolverhampton City Council","http://opendatacommunities.org/id/metropolitan-district-council/wolverhampton","ICELAND",17.04,"Key to Inspiration","5411","Provisions (Not for resale)","30/04/2019"
"Wolverhampton City Council","http://opendatacommunities.org/id/metropolitan-district-council/wolverhampton","ASDA SUPERSTORE",9.4,"Key to Inspiration","5411","Provisions (Not for resale)","30/04/2019"
"Wolverhampton City Council","http://opendatacommunities.org/id/metropolitan-district-council/wolverhampton","S&D SUPERMARKET WOLVER",6,"Key to Inspiration","5411","Provisions (Not for resale)","30/04/2019"
"Wolverhampton City Council","http://opendatacommunities.org/id/metropolitan-district-council/wolverhampton","S&D SUPERMARKET WOLVER",10.78,"Key to Inspiration","5411","Provisions (Not for resale)","30/04/2019"
"Wolverhampton City Council","http://opendatacommunities.org/id/metropolitan-district-council/wolverhampton","TOOLSTATION LTD",11.98,"Key to Inspiration","5251","Equipment - Purchase","30/04/2019"
"Wolverhampton City Council","http://opendatacommunities.org/id/metropolitan-district-council/wolverhampton","ASDA GROCERIES ONLINE",228.36,"Bradley Resource Centre","5411","Provisions (Not for resale)","30/04/2019"
"Wolverhampton City Council","http://opendatacommunities.org/id/metropolitan-district-council/wolverhampton","FRANKIE & BENNYS 5363",9.17,"Mayoral Expenses","5812","Subsistence","30/04/2019"
"Wolverhampton City Council","http://opendatacommunities.org/id/metropolitan-district-council/wolverhampton","THE FLOWER STALL",125,"Mayoral Expenses","5992","Hospitality","30/04/2019"
"Wolverhampton City Council","http://opendatacommunities.org/id/metropolitan-district-council/wolverhampton","WWW.GEAR4MUSIC.COM",76.66,"Aldersley Leisure Village","5733","Equipment - Purchase","30/04/2019"
"Wolverhampton City Council","http://opendatacommunities.org/id/metropolitan-district-council/wolverhampton","WWW.FITNESS-SUPERSTORE",35.78,"Aldersley Leisure Village","5941","Equipment - Purchase","30/04/2019"
"Wolverhampton City Council","http://opendatacommunities.org/id/metropolitan-district-council/wolverhampton","WWW.ZEPHYR-TVC.COM",77.94,"Register Office","5965","Equipment - Purchase","30/04/2019"
"Wolverhampton City Council","http://opendatacommunities.org/id/metropolitan-district-council/wolverhampton","NAMESCO",21.99,"City Direct","4816","Computing - Purchase of Software","30/04/2019"
"Wolverhampton City Council","http://opendatacommunities.org/id/metropolitan-district-council/wolverhampton","NAMESCO",24.98,"City Direct","4816","Computing - Purchase of Software","30/04/2019"
"Wolverhampton City Council","http://opendatacommunities.org/id/metropolitan-district-council/wolverhampton","VIDEKONLINE.CO.UK",70.5,"Strategic ICTS (ICT Serv Budget)","5722","Equipment - Purchase","30/04/2019"
"Wolverhampton City Council","http://opendatacommunities.org/id/metropolitan-district-council/wolverhampton","Amazon.co.uk MN7ZI5O64",43.25,"Strategic ICTS (ICT Serv Budget)","5969","Equipment - Purchase","30/04/2019"
"Wolverhampton City Council","http://opendatacommunities.org/id/metropolitan-district-council/wolverhampton","PAYPAL  CENTRALSOUR",195.79,"Strategic ICTS (ICT Serv Budget)","5085","Equipment - Purchase","30/04/2019"
"Wolverhampton City Council","http://opendatacommunities.org/id/metropolitan-district-council/wolverhampton","PAYPAL  MAKX LTD",36.12,"Strategic ICTS (ICT Serv Budget)","4812","Comms - Mobile Telephones","30/04/2019"
"Wolverhampton City Council","http://opendatacommunities.org/id/metropolitan-district-council/wolverhampton","HOTELS.COM158300267442",25,"MASH","4722","Section 17","30/04/2019"
"Wolverhampton City Council","http://opendatacommunities.org/id/metropolitan-district-council/wolverhampton","COMPANY CARDS LTD",53.5,"Technical Support","2741","Publications","30/04/2019"
"Wolverhampton City Council","http://opendatacommunities.org/id/metropolitan-district-council/wolverhampton","BCC REGISTER OFFIC",13.5,"LAC Team","9399","Financial Assistance In Exceptional Circ","30/04/2019"
"Wolverhampton City Council","http://opendatacommunities.org/id/metropolitan-district-council/wolverhampton","ASDA GROCERIES ONLINE",54.83,"Ernest Bold Court","5411","Provisions (Not for resale)","30/04/2019"
"Wolverhampton City Council","http://opendatacommunities.org/id/metropolitan-district-council/wolverhampton","RENAULT TRUCK COMM",131,"Fleet Management","7538","MOT & HGV Tests","30/04/2019"
"Wolverhampton City Council","http://opendatacommunities.org/id/metropolitan-district-council/wolverhampton","SAINSBURYS 2040",32.5,"Inclusion Support","5411","Provisions (Not for resale)","30/04/2019"
"Wolverhampton City Council","http://opendatacommunities.org/id/metropolitan-district-council/wolverhampton","Trainline",7.38,"CIN/CP Social Work Unit - Area 8","4112","Section 17","30/04/2019"
"Wolverhampton City Council","http://opendatacommunities.org/id/metropolitan-district-council/wolverhampton","Amazon.co.uk MN8HX2CI4",29.14,"Parks/Open Spaces - R & M","5969","Equipment - Purchase","30/04/2019"
"Wolverhampton City Council","http://opendatacommunities.org/id/metropolitan-district-council/wolverhampton","Amazon.co.uk MN4E53CG4",43.71,"Parks/Open Spaces - R & M","5969","Equipment - Purchase","30/04/2019"
"Wolverhampton City Council","http://opendatacommunities.org/id/metropolitan-district-council/wolverhampton","AMZNMktplace",11.65,"Parks - South West Area Management","5999","Equipment - Purchase","30/04/2019"
"Wolverhampton City Council","http://opendatacommunities.org/id/metropolitan-district-council/wolverhampton","AMZNMktplace",5.96,"Parks - South West Area Management","5999","Equipment - Purchase","30/04/2019"
"Wolverhampton City Council","http://opendatacommunities.org/id/metropolitan-district-council/wolverhampton","AMZN Mktp UK MN9JQ9CY4",28.6,"Parks - East Area Management","5942","Equipment - Purchase","30/04/2019"
"Wolverhampton City Council","http://opendatacommunities.org/id/metropolitan-district-council/wolverhampton","Virgin Trains",46.3,"Planning","4112","Public Transport","30/04/2019"
"Wolverhampton City Council","http://opendatacommunities.org/id/metropolitan-district-council/wolverhampton","THE RANGE",24.99,"Key to Inspiration","5311","Equipment - Purchase","29/04/2019"
"Wolverhampton City Council","http://opendatacommunities.org/id/metropolitan-district-council/wolverhampton","HOLIDAY INN EXPRESS",59,"-","7011","Services - Supplies & Services to users","29/04/2019"
"Wolverhampton City Council","http://opendatacommunities.org/id/metropolitan-district-council/wolverhampton","WWW.ICELAND.CO.UK",50.25,"Bradley Resource Centre","5411","Provisions (Not for resale)","29/04/2019"
"Wolverhampton City Council","http://opendatacommunities.org/id/metropolitan-district-council/wolverhampton","WWW.ICELAND.CO.UK",40.83,"Bradley Resource Centre","5411","Provisions (Not for resale)","29/04/2019"
"Wolverhampton City Council","http://opendatacommunities.org/id/metropolitan-district-council/wolverhampton","RESURRECTION RENTALS",108.33,"LAC Transitions Team","7512","Car Allowances","29/04/2019"
"Wolverhampton City Council","http://opendatacommunities.org/id/metropolitan-district-council/wolverhampton","MCDONALDS",5.39,"Youth Offending Team","5814","Educ Trips, Holidays, Outings, Activity","29/04/2019"
"Wolverhampton City Council","http://opendatacommunities.org/id/metropolitan-district-council/wolverhampton","ASDA GROCERIES ONLINE",-1,"Bradley Resource Centre","5411","Provisions (Not for resale)","29/04/2019"
"Wolverhampton City Council","http://opendatacommunities.org/id/metropolitan-district-council/wolverhampton","ASDA GROCERIES ONLINE",147.31,"Bradley Resource Centre","5411","Provisions (Not for resale)","29/04/2019"
"Wolverhampton City Council","http://opendatacommunities.org/id/metropolitan-district-council/wolverhampton","PREMIER INN 44536545",336,"Regional Adoption Agency","5812","Accommodation Costs","29/04/2019"
"Wolverhampton City Council","http://opendatacommunities.org/id/metropolitan-district-council/wolverhampton","ASDA SUPERSTORE",35.5,"Key to Inspiration","5411","Provisions (Not for resale)","29/04/2019"
"Wolverhampton City Council","http://opendatacommunities.org/id/metropolitan-district-council/wolverhampton","GOOGLE  ADS9680351324",500,"Communications & Marketing - General","5968","Subscriptions","29/04/2019"
"Wolverhampton City Council","http://opendatacommunities.org/id/metropolitan-district-council/wolverhampton","WM MORRISONS STORE",16,"Bert Williams Leisure Centre","5411","Provisions (Not for resale)","29/04/2019"
"Wolverhampton City Council","http://opendatacommunities.org/id/metropolitan-district-council/wolverhampton","AMZNMKTPLACE AMAZON.CO",17.58,"Business Support Services","5999","Catering","29/04/2019"
"Wolverhampton City Council","http://opendatacommunities.org/id/metropolitan-district-council/wolverhampton","WEST COAST TRAINS",81.9,"LAC Transitions Team","4112","Public Transport","29/04/2019"
"Wolverhampton City Council","http://opendatacommunities.org/id/metropolitan-district-council/wolverhampton","EBUYER (UK) LTD",51.31,"Strategic ICTS (ICT Serv Budget)","5722","Equipment - Purchase","29/04/2019"
"Wolverhampton City Council","http://opendatacommunities.org/id/metropolitan-district-council/wolverhampton","PSA Parts",86.5,"Strategic ICTS (ICT Serv Budget)","5732","Equipment - Purchase","29/04/2019"
"Wolverhampton City Council","http://opendatacommunities.org/id/metropolitan-district-council/wolverhampton","ARGOS LTD",34.99,"Intensive Family Support Team","5310","Equipment - Purchase","29/04/2019"
"Wolverhampton City Council","http://opendatacommunities.org/id/metropolitan-district-council/wolverhampton","AO RETAIL LIMITED",397,"Upper Pendeford Farm Childrens Home","5722","Equipment - Purchase","29/04/2019"
"Wolverhampton City Council","http://opendatacommunities.org/id/metropolitan-district-council/wolverhampton","AO RETAIL LIMITED",397,"Upper Pendeford Farm Childrens Home","5722","Equipment - Purchase","29/04/2019"
"Wolverhampton City Council","http://opendatacommunities.org/id/metropolitan-district-council/wolverhampton","WEST COAST TRAINS",35,"Art Gallery","4112","Public Transport","29/04/2019"
"Wolverhampton City Council","http://opendatacommunities.org/id/metropolitan-district-council/wolverhampton","LUL TICKET MACHINE",10,"Art Gallery","4112","Public Transport","29/04/2019"
"Wolverhampton City Council","http://opendatacommunities.org/id/metropolitan-district-council/wolverhampton","ESSENTRA COMPONENTS",52.3,"Telecare","5085","Equipment - Purchase","29/04/2019"
"Wolverhampton City Council","http://opendatacommunities.org/id/metropolitan-district-council/wolverhampton","RAYTON ELECT WSALERS L",25.4,"Culwell Street Depot","5999","R&M - Departmental planned (external)","29/04/2019"
"Wolverhampton City Council","http://opendatacommunities.org/id/metropolitan-district-council/wolverhampton","WIX.COM",43.57,"Technical Support","5968","Subscriptions","29/04/2019"
"Wolverhampton City Council","http://opendatacommunities.org/id/metropolitan-district-council/wolverhampton","IZ  FRONTLINK LIMITED",12.9,"Carers Support","5999","Equipment - Purchase","29/04/2019"
"Wolverhampton City Council","http://opendatacommunities.org/id/metropolitan-district-council/wolverhampton","AMZNMktplace",99.99,"Global Budgets","5999","Equipment - Purchase","29/04/2019"
"Wolverhampton City Council","http://opendatacommunities.org/id/metropolitan-district-council/wolverhampton","WWW.HIGHFIELDS.CO.UK",29.2,"Global Budgets","5942","Books","29/04/2019"
"Wolverhampton City Council","http://opendatacommunities.org/id/metropolitan-district-council/wolverhampton","POST OFFICE COUNTER",8.7,"LAC Team","9402","Comms - Postage","29/04/2019"
"Wolverhampton City Council","http://opendatacommunities.org/id/metropolitan-district-council/wolverhampton","ASDA GROCERIES ONLINE",-1,"Ernest Bold Court","5411","Provisions (Not for resale)","29/04/2019"
"Wolverhampton City Council","http://opendatacommunities.org/id/metropolitan-district-council/wolverhampton","ASDA GROCERIES ONLINE",61.63,"Ernest Bold Court","5411","Provisions (Not for resale)","29/04/2019"
"Wolverhampton City Council","http://opendatacommunities.org/id/metropolitan-district-council/wolverhampton","HIRE STATION-LTD",95.5,"Fountain Maintenance","7394","R&M - Departmental planned (external)","29/04/2019"
"Wolverhampton City Council","http://opendatacommunities.org/id/metropolitan-district-council/wolverhampton","HM PASSPORT OFFICE",70.83,"LAC Transitions Team","9399","Services - Fees and Charges","29/04/2019"
"Wolverhampton City Council","http://opendatacommunities.org/id/metropolitan-district-council/wolverhampton","PAYPAL  HORNER SHEA",165.95,"Northicote Farm","5099","Equipment - Purchase","29/04/2019"
"Wolverhampton City Council","http://opendatacommunities.org/id/metropolitan-district-council/wolverhampton","PAYPAL  GRANITEWORK",101.8,"Northicote Farm","8931","Protective Clothing","29/04/2019"
"Wolverhampton City Council","http://opendatacommunities.org/id/metropolitan-district-council/wolverhampton","PAYPAL  GRANITEWORK",203.6,"Northicote Farm","8931","Protective Clothing","29/04/2019"
"Wolverhampton City Council","http://opendatacommunities.org/id/metropolitan-district-council/wolverhampton","ARGOS LTD",169.12,"LAC Transitions Team","5310","Client Allowances","26/04/2019"
"Wolverhampton City Council","http://opendatacommunities.org/id/metropolitan-district-council/wolverhampton","000002200500000",200,"Childrens with Disabilities Team","6011","No Recourse to Public Funds","26/04/2019"
"Wolverhampton City Council","http://opendatacommunities.org/id/metropolitan-district-council/wolverhampton","MARKS&SPENCER PLC SACA",35.5,"Business Support Services","5411","Provisions (Not for resale)","26/04/2019"
"Wolverhampton City Council","http://opendatacommunities.org/id/metropolitan-district-council/wolverhampton","Trainline",78.55,"LAC Transitions Team","4112","Public Transport","26/04/2019"
"Wolverhampton City Council","http://opendatacommunities.org/id/metropolitan-district-council/wolverhampton","POST OFFICE COUNTER",7.4,"LAC Team","9402","Comms - Postage","26/04/2019"
"Wolverhampton City Council","http://opendatacommunities.org/id/metropolitan-district-council/wolverhampton","POST OFFICE COUNTER",7.4,"LAC Team","9402","Comms - Postage","26/04/2019"
"Wolverhampton City Council","http://opendatacommunities.org/id/metropolitan-district-council/wolverhampton","EBUYER (UK) LTD",277.51,"Strategic ICTS (ICT Serv Budget)","5722","Equipment - Purchase","26/04/2019"
"Wolverhampton City Council","http://opendatacommunities.org/id/metropolitan-district-council/wolverhampton","TANKS-DIRECT.CO.UK",204.9,"Central Baths","5399","Equipment - Purchase","26/04/2019"
"Wolverhampton City Council","http://opendatacommunities.org/id/metropolitan-district-council/wolverhampton","THE RANGE",11.97,"Technical Support","5311","Equipment - Purchase","26/04/2019"
"Wolverhampton City Council","http://opendatacommunities.org/id/metropolitan-district-council/wolverhampton","AMZNMktplace",8.12,"Global Budgets","5999","Equipment - Purchase","26/04/2019"
"Wolverhampton City Council","http://opendatacommunities.org/id/metropolitan-district-council/wolverhampton","AMZN Mktp UK MZ4SP9IT4",6.37,"Global Budgets","5942","Books","26/04/2019"
"Wolverhampton City Council","http://opendatacommunities.org/id/metropolitan-district-council/wolverhampton","CURRYS ONLINE",16.64,"EIP Locality 3","5732","Grant Payments","26/04/2019"
"Wolverhampton City Council","http://opendatacommunities.org/id/metropolitan-district-council/wolverhampton","Trainline.com",1204.01,"Delivery & OCE Development","4112","Public Transport","26/04/2019"
"Wolverhampton City Council","http://opendatacommunities.org/id/metropolitan-district-council/wolverhampton","Cross Country Trains",108.8,"Court Team","4112","Section 17","26/04/2019"
"Wolverhampton City Council","http://opendatacommunities.org/id/metropolitan-district-council/wolverhampton","NATWEST BANK",200,"NRPF","6011","No Recourse to Public Funds","26/04/2019"
"Wolverhampton City Council","http://opendatacommunities.org/id/metropolitan-district-council/wolverhampton","NATWEST BANK",200,"NRPF","6011","No Recourse to Public Funds","26/04/2019"
"Wolverhampton City Council","http://opendatacommunities.org/id/metropolitan-district-council/wolverhampton","Amazon.co.uk MZ6B76RT4",54.99,"Fleet Management","5969","Equipment - Purchase","26/04/2019"
"Wolverhampton City Council","http://opendatacommunities.org/id/metropolitan-district-council/wolverhampton","SMH PRODUCTS",32.75,"Fleet Management","5046","Equipment - Purchase","26/04/2019"
"Wolverhampton City Council","http://opendatacommunities.org/id/metropolitan-district-council/wolverhampton","THE RANGE",51.14,"Key to Inspiration","5311","Equipment - Purchase","25/04/2019"
"Wolverhampton City Council","http://opendatacommunities.org/id/metropolitan-district-council/wolverhampton","POUNDLAND LTD 1463",2,"Key to Inspiration","5310","Equipment - Purchase","25/04/2019"
"Wolverhampton City Council","http://opendatacommunities.org/id/metropolitan-district-council/wolverhampton","B&M RETAIL",16,"Key to Inspiration","5310","Equipment - Purchase","25/04/2019"
"Wolverhampton City Council","http://opendatacommunities.org/id/metropolitan-district-council/wolverhampton","Trainline",21.62,"Safeguarding Admin Resource","4112","Public Transport","25/04/2019"
"Wolverhampton City Council","http://opendatacommunities.org/id/metropolitan-district-council/wolverhampton","SPORTSDIRECT 383",6.44,"Key to Inspiration","5941","Equipment - Purchase","25/04/2019"
"Wolverhampton City Council","http://opendatacommunities.org/id/metropolitan-district-council/wolverhampton","AMZNMktplace",73.32,"Key to Inspiration","5999","Equipment - Purchase","25/04/2019"
"Wolverhampton City Council","http://opendatacommunities.org/id/metropolitan-district-council/wolverhampton","NATWEST BANK",180,"NRPF","6011","No Recourse to Public Funds","25/04/2019"
"Wolverhampton City Council","http://opendatacommunities.org/id/metropolitan-district-council/wolverhampton","ASDA GROCERIES ONLINE",104.1,"Bradley Resource Centre","5411","Provisions (Not for resale)","25/04/2019"
"Wolverhampton City Council","http://opendatacommunities.org/id/metropolitan-district-council/wolverhampton","Amazon.co.uk MZ5R12UI4",39.22,"Key to Inspiration","5969","Equipment - Purchase","25/04/2019"
"Wolverhampton City Council","http://opendatacommunities.org/id/metropolitan-district-council/wolverhampton","WWW.ICELAND.CO.UK",69.05,"Bradley Resource Centre","5411","Provisions (Not for resale)","25/04/2019"
"Wolverhampton City Council","http://opendatacommunities.org/id/metropolitan-district-council/wolverhampton","ARGOS RETAIL GROUP",58.93,"LAC Transitions Team","5310","Equipment - Purchase","25/04/2019"
"Wolverhampton City Council","http://opendatacommunities.org/id/metropolitan-district-council/wolverhampton","THE RANGE",54.71,"LAC Transitions Team","5311","Client Allowances","25/04/2019"
"Wolverhampton City Council","http://opendatacommunities.org/id/metropolitan-district-council/wolverhampton","B&M RETAIL",15.82,"LAC Transitions Team","5310","Client Allowances","25/04/2019"
"Wolverhampton City Council","http://opendatacommunities.org/id/metropolitan-district-council/wolverhampton","CT SANDWELL",50,"LAC Transitions Team","8398","Client Allowances","25/04/2019"
"Wolverhampton City Council","http://opendatacommunities.org/id/metropolitan-district-council/wolverhampton","Virgin Trains",79.35,"Fostering Team & Allowances","4112","Public Transport","25/04/2019"
"Wolverhampton City Council","http://opendatacommunities.org/id/metropolitan-district-council/wolverhampton","FACEBK  FDFSHMW9R2",500,"Communications & Marketing - General","7311","Marketing \ Non-staff advertising","25/04/2019"
"Wolverhampton City Council","http://opendatacommunities.org/id/metropolitan-district-council/wolverhampton","ASDA SUPERSTORE",33.35,"Mayoral Expenses","5411","Provisions (Not for resale)","25/04/2019"
"Wolverhampton City Council","http://opendatacommunities.org/id/metropolitan-district-council/wolverhampton","POUNDLAND LTD 1463",3.67,"Business Support Services","5310","Provisions (Not for resale)","25/04/2019"
"Wolverhampton City Council","http://opendatacommunities.org/id/metropolitan-district-council/wolverhampton","OFFICIALRECORDCOUK",19.98,"LAC Team","7392","Services - Fees and Charges","25/04/2019"
"Wolverhampton City Council","http://opendatacommunities.org/id/metropolitan-district-council/wolverhampton","Trainline",48.23,"Art Gallery","4112","Public Transport","25/04/2019"
"Wolverhampton City Council","http://opendatacommunities.org/id/metropolitan-district-council/wolverhampton","ROYAL CARPETS",395.83,"LAC Transitions Team","5713","Client Allowances","25/04/2019"
"Wolverhampton City Council","http://opendatacommunities.org/id/metropolitan-district-council/wolverhampton","Trainline",121.18,"Black Country Transport Director","4112","Events","25/04/2019"
"Wolverhampton City Council","http://opendatacommunities.org/id/metropolitan-district-council/wolverhampton","MARKS&SPENCER PLC SACA",2.18,"Business Support Services","5411","Provisions (Not for resale)","25/04/2019"
"Wolverhampton City Council","http://opendatacommunities.org/id/metropolitan-district-council/wolverhampton","LIDL GB",10.54,"Youth Offending Team","5411","Provisions (Not for resale)","25/04/2019"
"Wolverhampton City Council","http://opendatacommunities.org/id/metropolitan-district-council/wolverhampton","SAINSBURYS 2040",33,"Duke Street Bungalows","5411","R4010","25/04/2019"
"Wolverhampton City Council","http://opendatacommunities.org/id/metropolitan-district-council/wolverhampton","Wix.com",-2,"Technical Support","5817","Computing - Purchase of Software","25/04/2019"
"Wolverhampton City Council","http://opendatacommunities.org/id/metropolitan-district-council/wolverhampton","Wix.com",-2,"Technical Support","5817","Computing - Purchase of Software","25/04/2019"
"Wolverhampton City Council","http://opendatacommunities.org/id/metropolitan-district-council/wolverhampton","Wix.com",93.13,"Technical Support","5817","Computing - Purchase of Software","25/04/2019"
"Wolverhampton City Council","http://opendatacommunities.org/id/metropolitan-district-council/wolverhampton","POST OFFICE COUNTER",11,"LAC Team","9402","Comms - Postage","25/04/2019"
"Wolverhampton City Council","http://opendatacommunities.org/id/metropolitan-district-council/wolverhampton","POST OFFICE COUNTER",8.7,"LAC Team","9402","Comms - Postage","25/04/2019"
"Wolverhampton City Council","http://opendatacommunities.org/id/metropolitan-district-council/wolverhampton","ASDA GROCERIES ONLINE",5,"Ernest Bold Court","5411","Provisions (Not for resale)","25/04/2019"
"Wolverhampton City Council","http://opendatacommunities.org/id/metropolitan-district-council/wolverhampton","BCC REGISTER OFFIC",13.5,"Court Team","9399","Section 17","25/04/2019"
"Wolverhampton City Council","http://opendatacommunities.org/id/metropolitan-district-council/wolverhampton","NATWEST BANK",200,"NRPF","6011","No Recourse to Public Funds","25/04/2019"
"Wolverhampton City Council","http://opendatacommunities.org/id/metropolitan-district-council/wolverhampton","MBL SEMINARS",99,"Central Training","8299","Training Expenses","25/04/2019"
"Wolverhampton City Council","http://opendatacommunities.org/id/metropolitan-district-council/wolverhampton","AMZN Mktp UK MZ7XI9U54",6.88,"CIN/CP Social Work Unit - Area 8","5942","Stationery","25/04/2019"
"Wolverhampton City Council","http://opendatacommunities.org/id/metropolitan-district-council/wolverhampton","APPLE ONLINE STORE GBP",10,"Members Expenses","5732","Equipment - Purchase","25/04/2019"
"Wolverhampton City Council","http://opendatacommunities.org/id/metropolitan-district-council/wolverhampton","BAKER ROSS",318.33,"Education And Access","5970","Materials","24/04/2019"
"Wolverhampton City Council","http://opendatacommunities.org/id/metropolitan-district-council/wolverhampton","SPECIALIST CRAFTS LTD",429.38,"Education And Access","5970","Materials","24/04/2019"
"Wolverhampton City Council","http://opendatacommunities.org/id/metropolitan-district-council/wolverhampton","Trainline.com",71.73,"Service Director Adults","4112","Public Transport","24/04/2019"
"Wolverhampton City Council","http://opendatacommunities.org/id/metropolitan-district-council/wolverhampton","WWW.FTA.CO.UK",235.2,"Waste Coll & Recycling Serv General","8999","Stationery","24/04/2019"
"Wolverhampton City Council","http://opendatacommunities.org/id/metropolitan-district-council/wolverhampton","WWW.UBIQUS.CO.UK",20.32,"Legal Services","7399","Services - Professional Fees","24/04/2019"
"Wolverhampton City Council","http://opendatacommunities.org/id/metropolitan-district-council/wolverhampton","THE COAL AUTHORITY",96.87,"Disposal Costs","9399","Services - Professional Fees","24/04/2019"
"Wolverhampton City Council","http://opendatacommunities.org/id/metropolitan-district-council/wolverhampton","www.anyvan.com",17.9,"Adult Services - North","4214","Hire of Vehicles","24/04/2019"
"Wolverhampton City Council","http://opendatacommunities.org/id/metropolitan-district-council/wolverhampton","AMZNMktplace",29.17,"Parks - Ranger Service","5999","Equipment - Purchase","24/04/2019"
"Wolverhampton City Council","http://opendatacommunities.org/id/metropolitan-district-council/wolverhampton","SP   DYSLEXIA BOX",145.82,"CIN/CP Social Work Unit - Area 8","5734","Computing - Purchase of Hardware","24/04/2019"
"Wolverhampton City Council","http://opendatacommunities.org/id/metropolitan-district-council/wolverhampton","B&M RETAIL",30,"Key to Inspiration","5310","Equipment - Purchase","24/04/2019"
"Wolverhampton City Council","http://opendatacommunities.org/id/metropolitan-district-council/wolverhampton","B&M RETAIL LTD",200,"Key to Inspiration","5310","Equipment - Purchase","24/04/2019"
"Wolverhampton City Council","http://opendatacommunities.org/id/metropolitan-district-council/wolverhampton","AURORA GRAPHICS & DISP",151.8,"Document Centre - General","7311","Equipment - Purchase","24/04/2019"
"Wolverhampton City Council","http://opendatacommunities.org/id/metropolitan-district-council/wolverhampton","Trainline",58.71,"Revenues","4112","Public Transport","24/04/2019"
"Wolverhampton City Council","http://opendatacommunities.org/id/metropolitan-district-council/wolverhampton","WWW.PRIMATEL.CO.UK",816,"Banking","5111","Services - Bank Charges","24/04/2019"
"Wolverhampton City Council","http://opendatacommunities.org/id/metropolitan-district-council/wolverhampton","Virgin Trains",91.2,"Risk Management & Insurance","4112","Public Transport","24/04/2019"
"Wolverhampton City Council","http://opendatacommunities.org/id/metropolitan-district-council/wolverhampton","DECATHLON UK",93.27,"Central Baths","5941","Equipment - Purchase","24/04/2019"
"Wolverhampton City Council","http://opendatacommunities.org/id/metropolitan-district-council/wolverhampton","WWW.WOLVERHAMPTON.GOV.",78.61,"LAC Transitions Team","9399","Client Allowances","24/04/2019"
"Wolverhampton City Council","http://opendatacommunities.org/id/metropolitan-district-council/wolverhampton","AMZN Mktp UK MZ1CX19N4",5.59,"Global Budgets","5942","Books","24/04/2019"
"Wolverhampton City Council","http://opendatacommunities.org/id/metropolitan-district-council/wolverhampton","WAITROSE 696",6.55,"Technical Support","5411","Provisions (Not for resale)","24/04/2019"
"Wolverhampton City Council","http://opendatacommunities.org/id/metropolitan-district-council/wolverhampton","ASDA GROCERIES ONLINE",-2.9,"Bradley Resource Centre","5411","Provisions (Not for resale)","23/04/2019"
"Wolverhampton City Council","http://opendatacommunities.org/id/metropolitan-district-council/wolverhampton","ASDA GROCERIES ONLINE",166.05,"Bradley Resource Centre","5411","Provisions (Not for resale)","23/04/2019"
"Wolverhampton City Council","http://opendatacommunities.org/id/metropolitan-district-council/wolverhampton","Amazon.co.uk MZ6UF4KC4",19.97,"Global Budgets","5969","Books","23/04/2019"
"Wolverhampton City Council","http://opendatacommunities.org/id/metropolitan-district-council/wolverhampton","ASDA GROCERIES ONLINE",-15.05,"Ernest Bold Court","5411","Provisions (Not for resale)","23/04/2019"
"Wolverhampton City Council","http://opendatacommunities.org/id/metropolitan-district-council/wolverhampton","ASDA GROCERIES ONLINE",61.14,"Ernest Bold Court","5411","Provisions (Not for resale)","23/04/2019"
"Wolverhampton City Council","http://opendatacommunities.org/id/metropolitan-district-council/wolverhampton","AMZNMktplace",14.99,"Northicote Farm","5999","Protective Clothing","23/04/2019"
"Wolverhampton City Council","http://opendatacommunities.org/id/metropolitan-district-council/wolverhampton","AMZN Mktp UK MZ1NY4SJ4",11,"Global Budgets","5942","Books","22/04/2019"
"Wolverhampton City Council","http://opendatacommunities.org/id/metropolitan-district-council/wolverhampton","WM MORRISONS STORE",57.56,"Ernest Bold Court","5411","Provisions (Not for resale)","22/04/2019"
"Wolverhampton City Council","http://opendatacommunities.org/id/metropolitan-district-council/wolverhampton","NANDOS (BIRMINGHAM RES",23.37,"LAC Transitions Team","5812","Client Allowances","22/04/2019"
"Wolverhampton City Council","http://opendatacommunities.org/id/metropolitan-district-council/wolverhampton","B&M RETAIL LTD",13.32,"LAC Transitions Team","5310","Client Allowances","22/04/2019"
"Wolverhampton City Council","http://opendatacommunities.org/id/metropolitan-district-council/wolverhampton","HOLIDAY INNS",53,"Mayoral Expenses","3501","Accommodation Costs","22/04/2019"
"Wolverhampton City Council","http://opendatacommunities.org/id/metropolitan-district-council/wolverhampton","WWW.ICELAND.CO.UK",69.76,"Bradley Resource Centre","5411","Provisions (Not for resale)","22/04/2019"
"Wolverhampton City Council","http://opendatacommunities.org/id/metropolitan-district-council/wolverhampton","Trainline",-22.9,"LAC Transitions Team","4112","Public Transport","22/04/2019"
"Wolverhampton City Council","http://opendatacommunities.org/id/metropolitan-district-council/wolverhampton","Amazon Prime MZ6QG0S74",6.66,"Central Baths","5968","Subscriptions","22/04/2019"
"Wolverhampton City Council","http://opendatacommunities.org/id/metropolitan-district-council/wolverhampton","PAYPAL  TRIPADVISOR",583.95,"Regional Adoption Agency","7011","Accommodation Costs","22/04/2019"
"Wolverhampton City Council","http://opendatacommunities.org/id/metropolitan-district-council/wolverhampton","WWW.PETEREVANSSTORAGES",104.8,"Central Baths","5946","Equipment - Purchase","22/04/2019"
"Wolverhampton City Council","http://opendatacommunities.org/id/metropolitan-district-council/wolverhampton","WWW.SUPERTUFFEUROPE.CO",164,"Central Baths","5072","Equipment - Purchase","22/04/2019"
"Wolverhampton City Council","http://opendatacommunities.org/id/metropolitan-district-council/wolverhampton","STRENGTHSHOP UK",58.32,"Central Baths","5941","Equipment - Purchase","22/04/2019"
"Wolverhampton City Council","http://opendatacommunities.org/id/metropolitan-district-council/wolverhampton","ASDA GROCERIES ONLINE",-8.57,"Upper Pendeford Farm Childrens Home","5411","Provisions (Not for resale)","22/04/2019"
"Wolverhampton City Council","http://opendatacommunities.org/id/metropolitan-district-council/wolverhampton","ASDA GROCERIES ONLINE",207.91,"Upper Pendeford Farm Childrens Home","5411","Provisions (Not for resale)","22/04/2019"
"Wolverhampton City Council","http://opendatacommunities.org/id/metropolitan-district-council/wolverhampton","HM PASSPORT OFFICE",127,"LAC Team","9399","Services - Fees and Charges","22/04/2019"
"Wolverhampton City Council","http://opendatacommunities.org/id/metropolitan-district-council/wolverhampton","AMZNMktplace",47.45,"Global Budgets","5999","Books","22/04/2019"
"Wolverhampton City Council","http://opendatacommunities.org/id/metropolitan-district-council/wolverhampton","AMZN Mktp UK MZ91S0SJ4",3.18,"Global Budgets","5942","Books","22/04/2019"
"Wolverhampton City Council","http://opendatacommunities.org/id/metropolitan-district-council/wolverhampton","QUALITY OFFICE SUP",77.95,"Document Centre - General","5943","Stationery","19/04/2019"
"Wolverhampton City Council","http://opendatacommunities.org/id/metropolitan-district-council/wolverhampton","HACHETTE UK DISTRIBUTI",-259.74,"Art Gallery","5965","Equipment - Purchase","19/04/2019"
"Wolverhampton City Council","http://opendatacommunities.org/id/metropolitan-district-council/wolverhampton","WWW.ARGOS.CO.UK",108.93,"CIN/CP Social Work Unit - Area 7","5310","Equipment - Purchase","19/04/2019"
"Wolverhampton City Council","http://opendatacommunities.org/id/metropolitan-district-council/wolverhampton","Trainline",61.25,"Safeguarding Admin Resource","4112","Public Transport","19/04/2019"
"Wolverhampton City Council","http://opendatacommunities.org/id/metropolitan-district-council/wolverhampton","Trainline",8.9,"Safeguarding Admin Resource","4112","Public Transport","19/04/2019"
"Wolverhampton City Council","http://opendatacommunities.org/id/metropolitan-district-council/wolverhampton","CardtronicsUK",251.85,"Childrens with Disabilities Team","6011","No Recourse to Public Funds","19/04/2019"
"Wolverhampton City Council","http://opendatacommunities.org/id/metropolitan-district-council/wolverhampton","COSMO",100.75,"Headstart - Young People Engagement","5812","Educ Trips, Holidays, Outings, Activity","19/04/2019"
"Wolverhampton City Council","http://opendatacommunities.org/id/metropolitan-district-council/wolverhampton","MORRISON PETROL",4,"Bert Williams Leisure Centre","5541","Petrol","19/04/2019"
"Wolverhampton City Council","http://opendatacommunities.org/id/metropolitan-district-council/wolverhampton","WM MORRISONS STORE",8,"Bert Williams Leisure Centre","5411","Provisions (Not for resale)","19/04/2019"
"Wolverhampton City Council","http://opendatacommunities.org/id/metropolitan-district-council/wolverhampton","SAINSBURYS PFS (1340)",2,"Mayoral Expenses","5541","Vehicle Maintenance - Repairs","19/04/2019"
"Wolverhampton City Council","http://opendatacommunities.org/id/metropolitan-district-council/wolverhampton","GAME RETAIL",34.99,"Upper Pendeford Farm Childrens Home","5945","Educ Trips, Holidays, Outings, Activity","19/04/2019"
"Wolverhampton City Council","http://opendatacommunities.org/id/metropolitan-district-council/wolverhampton","CardtronicsUK",71.85,"Emergency Duty Team","6011","Financial Assistance In Exceptional Circ","19/04/2019"
"Wolverhampton City Council","http://opendatacommunities.org/id/metropolitan-district-council/wolverhampton","Dyslexie Font B.V.",318.42,"Educational Studies Delivery Area","5817","Computing - Purchase of Software","19/04/2019"
"Wolverhampton City Council","http://opendatacommunities.org/id/metropolitan-district-council/wolverhampton","IZ  D & K TRADING (MID",116.3,"Bilston Market & Licensed Operations","5999","Equipment - Purchase","19/04/2019"
"Wolverhampton City Council","http://opendatacommunities.org/id/metropolitan-district-council/wolverhampton","YOUNG`S SHOE REPAIRS L",152.85,"Bilston Market & Licensed Operations","7251","Fixtures and Fittings - R&M","19/04/2019"
"Wolverhampton City Council","http://opendatacommunities.org/id/metropolitan-district-council/wolverhampton","AMZNMktplace",20.79,"Community Enablement","5999","Cleaning Supplies and Materials","19/04/2019"
"Wolverhampton City Council","http://opendatacommunities.org/id/metropolitan-district-council/wolverhampton","POST OFFICE COUNTER",73.25,"LAC Team","9402","Comms - Postage","19/04/2019"
"Wolverhampton City Council","http://opendatacommunities.org/id/metropolitan-district-council/wolverhampton","WIX.COM",93.13,"Technical Support","5968","Subscriptions","19/04/2019"
"Wolverhampton City Council","http://opendatacommunities.org/id/metropolitan-district-council/wolverhampton","AMZNMktplace",6,"Global Budgets","5999","Books","19/04/2019"
"Wolverhampton City Council","http://opendatacommunities.org/id/metropolitan-district-council/wolverhampton","AMZN Mktp UK MZ8TC0DN4",66.66,"Legal Services","5942","Stationery","19/04/2019"
"Wolverhampton City Council","http://opendatacommunities.org/id/metropolitan-district-council/wolverhampton","GEN REGISTER OFFICE",15,"LAC Transitions Team","9399","Client Allowances","19/04/2019"
"Wolverhampton City Council","http://opendatacommunities.org/id/metropolitan-district-council/wolverhampton","PRIMARK 689",21.58,"LAC Transitions Team","5651","Client Allowances","19/04/2019"
"Wolverhampton City Council","http://opendatacommunities.org/id/metropolitan-district-council/wolverhampton","MARK BUTLER GOLF ACADE",8,"Youth Offending Team","8999","Services - Professional Fees","18/04/2019"
"Wolverhampton City Council","http://opendatacommunities.org/id/metropolitan-district-council/wolverhampton","GOOGLE  ADS9680351324",500,"Communications & Marketing - General","5968","Subscriptions","18/04/2019"
"Wolverhampton City Council","http://opendatacommunities.org/id/metropolitan-district-council/wolverhampton","AMFBOWLING.CO.UK",86.25,"Headstart - Young People Engagement","7997","Educ Trips, Holidays, Outings, Activity","18/04/2019"
"Wolverhampton City Council","http://opendatacommunities.org/id/metropolitan-district-council/wolverhampton","GEN REGISTER OFFICE",-7.5,"LAC Team","9399","Services - Fees and Charges","18/04/2019"
"Wolverhampton City Council","http://opendatacommunities.org/id/metropolitan-district-council/wolverhampton","Virgin Trains",81.7,"LAC Team","4112","Public Transport","18/04/2019"
"Wolverhampton City Council","http://opendatacommunities.org/id/metropolitan-district-council/wolverhampton","Virgin Trains",90,"LAC Team","4112","Public Transport","18/04/2019"
"Wolverhampton City Council","http://opendatacommunities.org/id/metropolitan-district-council/wolverhampton","MARK BUTLER GOLF ACADE",25,"Youth Offending Team","8999","Services - Professional Fees","18/04/2019"
"Wolverhampton City Council","http://opendatacommunities.org/id/metropolitan-district-council/wolverhampton","MARK BUTLER GOLF ACADE",25,"Youth Offending Team","8999","Services - Professional Fees","18/04/2019"
"Wolverhampton City Council","http://opendatacommunities.org/id/metropolitan-district-council/wolverhampton","TVLICENSING.CO.UK",128.75,"LAC Transitions Team","7392","Client Allowances","18/04/2019"
"Wolverhampton City Council","http://opendatacommunities.org/id/metropolitan-district-council/wolverhampton","Virgin Trains",190.7,"Regional Adoption Agency","4112","Public Transport","18/04/2019"
"Wolverhampton City Council","http://opendatacommunities.org/id/metropolitan-district-council/wolverhampton","Virgin Trains",82.3,"Electoral Registration","4112","Public Transport","18/04/2019"
"Wolverhampton City Council","http://opendatacommunities.org/id/metropolitan-district-council/wolverhampton","BARCLAYS",250,"CIN/CP Social Work Unit - Area 6","6011","Section 17","18/04/2019"
"Wolverhampton City Council","http://opendatacommunities.org/id/metropolitan-district-council/wolverhampton","EDMUNDSON ELECTRICAL L",122,"Culwell Street Depot","5065","R&M - Departmental planned (external)","18/04/2019"
"Wolverhampton City Council","http://opendatacommunities.org/id/metropolitan-district-council/wolverhampton","WWW.WOLVERHAMPTON.GOV.",250,"LAC Transitions Team","9399","Client Allowances","18/04/2019"
"Wolverhampton City Council","http://opendatacommunities.org/id/metropolitan-district-council/wolverhampton","WWW.WOLVERHAMPTON.GOV.",500,"LAC Transitions Team","9399","Client Allowances","18/04/2019"
"Wolverhampton City Council","http://opendatacommunities.org/id/metropolitan-district-council/wolverhampton","ASDA GROCERIES ONLINE",172.4,"Duke Street Bungalows","5411","Provisions (Not for resale)","18/04/2019"
"Wolverhampton City Council","http://opendatacommunities.org/id/metropolitan-district-council/wolverhampton","AMZNMKTPLACE AMAZON.CO",21.65,"Trading Standards","5999","Equipment - Purchase","18/04/2019"
"Wolverhampton City Council","http://opendatacommunities.org/id/metropolitan-district-council/wolverhampton","AMZNMKTPLACE AMAZON.CO",8.65,"Trading Standards","5999","Equipment - Purchase","18/04/2019"
"Wolverhampton City Council","http://opendatacommunities.org/id/metropolitan-district-council/wolverhampton","AMZNMKTPLACE AMAZON.CO",21.65,"Trading Standards","5999","Equipment - Purchase","18/04/2019"
"Wolverhampton City Council","http://opendatacommunities.org/id/metropolitan-district-council/wolverhampton","NATWEST BANK",200,"NRPF","6011","No Recourse to Public Funds","18/04/2019"
"Wolverhampton City Council","http://opendatacommunities.org/id/metropolitan-district-council/wolverhampton","NATWEST BANK",200,"NRPF","6011","No Recourse to Public Funds","18/04/2019"
"Wolverhampton City Council","http://opendatacommunities.org/id/metropolitan-district-council/wolverhampton","CITY OF WOLVERHAMPTON",16,"Head of Service - CINCP","9399","Services - Professional Fees","18/04/2019"
"Wolverhampton City Council","http://opendatacommunities.org/id/metropolitan-district-council/wolverhampton","www.anyvan.com",84,"Adult Services - North","4214","Hire of Vehicles","18/04/2019"
"Wolverhampton City Council","http://opendatacommunities.org/id/metropolitan-district-council/wolverhampton","J VAN VLIET BIRMINGHAM",199.49,"Creative Studies Delivery Area","5399","Materials for resale","18/04/2019"
"Wolverhampton City Council","http://opendatacommunities.org/id/metropolitan-district-council/wolverhampton","SPORTSDIRECT 188",32.54,"LAC Transitions Team","5941","Client Allowances","18/04/2019"
"Wolverhampton City Council","http://opendatacommunities.org/id/metropolitan-district-council/wolverhampton","NEW LOOK 1710",7.53,"LAC Transitions Team","5621","Client Allowances","18/04/2019"
"Wolverhampton City Council","http://opendatacommunities.org/id/metropolitan-district-council/wolverhampton","MS COSMETICS",2.91,"LAC Transitions Team","5698","Client Allowances","18/04/2019"
"Wolverhampton City Council","http://opendatacommunities.org/id/metropolitan-district-council/wolverhampton","MS COSMETICS",13.79,"LAC Transitions Team","5698","Client Allowances","18/04/2019"
"Wolverhampton City Council","http://opendatacommunities.org/id/metropolitan-district-council/wolverhampton","Virgin Trains",127.85,"Mayoral Expenses","4112","Public Transport","18/04/2019"
"Wolverhampton City Council","http://opendatacommunities.org/id/metropolitan-district-council/wolverhampton","ASDA GROCERIES ONLINE",-24.39,"-","5411","Provisions (Not for resale)","18/04/2019"
"Wolverhampton City Council","http://opendatacommunities.org/id/metropolitan-district-council/wolverhampton","ASDA GROCERIES ONLINE",201.15,"Bradley Resource Centre","5411","Provisions (Not for resale)","18/04/2019"
"Wolverhampton City Council","http://opendatacommunities.org/id/metropolitan-district-council/wolverhampton","CONCEPT PRESENT SO",112,"Document Centre - General","7338","Materials","18/04/2019"
"Wolverhampton City Council","http://opendatacommunities.org/id/metropolitan-district-council/wolverhampton","AMZN Mktp UK MZ30U36S4",24.99,"IMPACT","5942","Books","18/04/2019"
"Wolverhampton City Council","http://opendatacommunities.org/id/metropolitan-district-council/wolverhampton","THE RANGE",25.82,"LAC Transitions Team","5311","Client Allowances","18/04/2019"
"Wolverhampton City Council","http://opendatacommunities.org/id/metropolitan-district-council/wolverhampton","IKEA LTD 142 BIRMINGHA",66.17,"LAC Transitions Team","5712","Client Allowances","18/04/2019"
"Wolverhampton City Council","http://opendatacommunities.org/id/metropolitan-district-council/wolverhampton","CT SANDWELL",8.33,"LAC Transitions Team","8398","Client Allowances","18/04/2019"
"Wolverhampton City Council","http://opendatacommunities.org/id/metropolitan-district-council/wolverhampton","MARK BUTLER GOLF ACADE",3.5,"Youth Offending Team","8999","Services - Professional Fees","18/04/2019"
"Wolverhampton City Council","http://opendatacommunities.org/id/metropolitan-district-council/wolverhampton","WWW.SPARKENERGY.CO.UK",156.33,"LAC Transitions Team","4900","Client Allowances","17/04/2019"
"Wolverhampton City Council","http://opendatacommunities.org/id/metropolitan-district-council/wolverhampton","SCREWFIX DIRECT LT",24.64,"Key to Inspiration","5211","Materials","17/04/2019"
"Wolverhampton City Council","http://opendatacommunities.org/id/metropolitan-district-council/wolverhampton","IKEA LTD 142 BIRMINGHA",49.75,"Key to Inspiration","5712","Equipment - Purchase","17/04/2019"
"Wolverhampton City Council","http://opendatacommunities.org/id/metropolitan-district-council/wolverhampton","Amazon.co.uk MZ0VG6QJ4",27.9,"Key to Inspiration","5969","Equipment - Purchase","17/04/2019"
"Wolverhampton City Council","http://opendatacommunities.org/id/metropolitan-district-council/wolverhampton","WWW.ICELAND.CO.UK",45.05,"Bradley Resource Centre","5411","Provisions (Not for resale)","17/04/2019"
"Wolverhampton City Council","http://opendatacommunities.org/id/metropolitan-district-council/wolverhampton","ASDA GROCERIES ONLINE",70.75,"Bradley Resource Centre","5411","Provisions (Not for resale)","17/04/2019"
"Wolverhampton City Council","http://opendatacommunities.org/id/metropolitan-district-council/wolverhampton","POUNDLAND LTD 1463",5,"Strategic Financial Services","5310","Equipment - Purchase","17/04/2019"
"Wolverhampton City Council","http://opendatacommunities.org/id/metropolitan-district-council/wolverhampton","NATWEST BANK",50,"Private Hire Vehicles","6011","Financial Assistance In Exceptional Circ","17/04/2019"
"Wolverhampton City Council","http://opendatacommunities.org/id/metropolitan-district-council/wolverhampton","B&M RETAIL LTD",39.13,"LAC Transitions Team","5310","Client Allowances","17/04/2019"
"Wolverhampton City Council","http://opendatacommunities.org/id/metropolitan-district-council/wolverhampton","ASDA GROCERIES ONLINE",-3,"-","5411","Provisions (Not for resale)","17/04/2019"
"Wolverhampton City Council","http://opendatacommunities.org/id/metropolitan-district-council/wolverhampton","ARGOS LTD",35.82,"LAC Transitions Team","5310","Client Allowances","17/04/2019"
"Wolverhampton City Council","http://opendatacommunities.org/id/metropolitan-district-council/wolverhampton","ARGOS LTD",268.32,"LAC Transitions Team","5310","Client Allowances","17/04/2019"
"Wolverhampton City Council","http://opendatacommunities.org/id/metropolitan-district-council/wolverhampton","NATWEST BANK",400,"NRPF","6011","No Recourse to Public Funds","17/04/2019"
"Wolverhampton City Council","http://opendatacommunities.org/id/metropolitan-district-council/wolverhampton","ARGOS RETAIL GROUP",124.99,"LAC Transitions Team","5310","Client Allowances","17/04/2019"
"Wolverhampton City Council","http://opendatacommunities.org/id/metropolitan-district-council/wolverhampton","POST OFFICE COUNTER",2.26,"Towers Outdoor Education Centre","9402","Comms - Postage","17/04/2019"
"Wolverhampton City Council","http://opendatacommunities.org/id/metropolitan-district-council/wolverhampton","WISEPOPS",84.29,"City Direct","7372","Computing - Purchase of Software","17/04/2019"
"Wolverhampton City Council","http://opendatacommunities.org/id/metropolitan-district-council/wolverhampton","WWW.LIFESAVERSDIRECT",350.29,"Central Baths","5965","Equipment - Purchase","17/04/2019"
"Wolverhampton City Council","http://opendatacommunities.org/id/metropolitan-district-council/wolverhampton","GEN REGISTER OFFICE",-7.5,"LAC Team","9399","Services - Fees and Charges","17/04/2019"
"Wolverhampton City Council","http://opendatacommunities.org/id/metropolitan-district-council/wolverhampton","CITY OF WOLVERHAMPTON",16,"LAC Team","9399","Services - Fees and Charges","17/04/2019"
"Wolverhampton City Council","http://opendatacommunities.org/id/metropolitan-district-council/wolverhampton","POST OFFICE COUNTER",8.7,"LAC Team","9402","Comms - Postage","17/04/2019"
"Wolverhampton City Council","http://opendatacommunities.org/id/metropolitan-district-council/wolverhampton","AMZNMktplace",17.99,"LAC Team","5999","Equipment - Purchase","17/04/2019"
"Wolverhampton City Council","http://opendatacommunities.org/id/metropolitan-district-council/wolverhampton","AMZN Mktp UK MZ0GW8QV4",75.25,"Creative Studies Delivery Area","5942","Equipment - Purchase","17/04/2019"
"Wolverhampton City Council","http://opendatacommunities.org/id/metropolitan-district-council/wolverhampton","SAINSBURYS (2340)",18.82,"Vulnerable Young Persons Team","5411","Provisions (Not for resale)","17/04/2019"
"Wolverhampton City Council","http://opendatacommunities.org/id/metropolitan-district-council/wolverhampton","WICKES WOLVERHAMPTON",40.16,"Independant Living Services","5211","Equipment - R & M","17/04/2019"
"Wolverhampton City Council","http://opendatacommunities.org/id/metropolitan-district-council/wolverhampton","ARGOS LTD",34.99,"Duke Street Bungalows","5310","R4010","17/04/2019"
"Wolverhampton City Council","http://opendatacommunities.org/id/metropolitan-district-council/wolverhampton","ROOKERY Sainsburys Ba",100,"Duke Street Bungalows","6011","Provisions (Not for resale)","17/04/2019"
"Wolverhampton City Council","http://opendatacommunities.org/id/metropolitan-district-council/wolverhampton","AMZNMktplace",114.63,"Trading Standards","5999","Equipment - Purchase","17/04/2019"
"Wolverhampton City Council","http://opendatacommunities.org/id/metropolitan-district-council/wolverhampton","J VAN VLIET BIRMINGHAM",149.71,"Creative Studies Delivery Area","5399","Materials for resale","17/04/2019"
"Wolverhampton City Council","http://opendatacommunities.org/id/metropolitan-district-council/wolverhampton","B & Q 1243",16.67,"Ernest Bold Court","5211","Equipment - R & M","17/04/2019"
"Wolverhampton City Council","http://opendatacommunities.org/id/metropolitan-district-council/wolverhampton","Trainline.com",67.87,"Inclusion Support","7922","Educ Trips, Holidays, Outings, Activity","17/04/2019"
"Wolverhampton City Council","http://opendatacommunities.org/id/metropolitan-district-council/wolverhampton","DRI JabraBlueParrott",140.83,"CIN/CP Social Work Unit - Area 8","5734","Computing - Purchase of Hardware","17/04/2019"
"Wolverhampton City Council","http://opendatacommunities.org/id/metropolitan-district-council/wolverhampton","CUMMINGS BROTHERS LOCK",12,"-","7399","Equipment - Purchase","16/04/2019"
"Wolverhampton City Council","http://opendatacommunities.org/id/metropolitan-district-council/wolverhampton","TOOLSTATION LTD",10.74,"EIP Locality 7","5251","Equipment - Purchase","16/04/2019"
"Wolverhampton City Council","http://opendatacommunities.org/id/metropolitan-district-council/wolverhampton","ARGOS WOLVERHAMPTO",5,"Key to Inspiration","5310","Equipment - Purchase","16/04/2019"
"Wolverhampton City Council","http://opendatacommunities.org/id/metropolitan-district-council/wolverhampton","WM MORRISONS STORE",7.37,"Regional Adoption Agency","5411","Provisions (Not for resale)","16/04/2019"
"Wolverhampton City Council","http://opendatacommunities.org/id/metropolitan-district-council/wolverhampton","POST OFFICE COUNTER",2.8,"Regional Adoption Agency","9402","Comms - Postage","16/04/2019"
"Wolverhampton City Council","http://opendatacommunities.org/id/metropolitan-district-council/wolverhampton","CURRYS ONLINE",-250,"Towers Outdoor Education Centre","5732","Equipment - Purchase","16/04/2019"
"Wolverhampton City Council","http://opendatacommunities.org/id/metropolitan-district-council/wolverhampton","Virgin Trains",-243.55,"Fostering Team & Allowances","4112","Public Transport","16/04/2019"
"Wolverhampton City Council","http://opendatacommunities.org/id/metropolitan-district-council/wolverhampton","WWW.ICELAND.CO.UK",59.31,"Bradley Resource Centre","5411","Provisions (Not for resale)","16/04/2019"
"Wolverhampton City Council","http://opendatacommunities.org/id/metropolitan-district-council/wolverhampton","SCREWFIX DIRECT",153.46,"Outdoor Events Admin","5200","Equipment - Purchase","16/04/2019"
"Wolverhampton City Council","http://opendatacommunities.org/id/metropolitan-district-council/wolverhampton","POST OFFICE COUNTER",330,"Fostering Team & Allowances","9402","Comms - Postage","16/04/2019"
"Wolverhampton City Council","http://opendatacommunities.org/id/metropolitan-district-council/wolverhampton","WP-CENTRAL TAXIS L",96.33,"Fostering Team & Allowances","4121","Client Transport","16/04/2019"
"Wolverhampton City Council","http://opendatacommunities.org/id/metropolitan-district-council/wolverhampton","SPECSAVERSEVOUGB-",36.81,"HR Advice","8043","Services - Professional Fees","16/04/2019"
"Wolverhampton City Council","http://opendatacommunities.org/id/metropolitan-district-council/wolverhampton","AMZN Mktp UK MZ83A9834",53.75,"Creative Studies Delivery Area","5942","Equipment - Purchase","16/04/2019"
"Wolverhampton City Council","http://opendatacommunities.org/id/metropolitan-district-council/wolverhampton","ACYBA",71.59,"ICT Services","7372","Computing - Purchase of Software","16/04/2019"
"Wolverhampton City Council","http://opendatacommunities.org/id/metropolitan-district-council/wolverhampton","NAS UK",11.74,"EIP Locality 6","8398","Equipment - Purchase","16/04/2019"
"Wolverhampton City Council","http://opendatacommunities.org/id/metropolitan-district-council/wolverhampton","SCREWFIX DIRECT",238.17,"Old Hall Street Main","5200","Equipment - Purchase","16/04/2019"
"Wolverhampton City Council","http://opendatacommunities.org/id/metropolitan-district-council/wolverhampton","SCARVA POTTERY SUPPLIE",32.38,"Creative Studies Delivery Area","5970","Equipment - Purchase","16/04/2019"
"Wolverhampton City Council","http://opendatacommunities.org/id/metropolitan-district-council/wolverhampton","JOHNSONS",18,"Business Support Services","7210","Laundry Expenses","16/04/2019"
"Wolverhampton City Council","http://opendatacommunities.org/id/metropolitan-district-council/wolverhampton","ROYAL CARPETS",150,"LAC Transitions Team","5713","Client Allowances","16/04/2019"
"Wolverhampton City Council","http://opendatacommunities.org/id/metropolitan-district-council/wolverhampton","SCREWFIX DIRECT LT",39.95,"Culwell Street Depot","5211","R&M - Departmental planned (external)","16/04/2019"
"Wolverhampton City Council","http://opendatacommunities.org/id/metropolitan-district-council/wolverhampton","ASDA GROCERIES ONLINE",-0.06,"Ernest Bold Court","5411","Provisions (Not for resale)","16/04/2019"
"Wolverhampton City Council","http://opendatacommunities.org/id/metropolitan-district-council/wolverhampton","ASDA GROCERIES ONLINE",52.52,"Ernest Bold Court","5411","Provisions (Not for resale)","16/04/2019"
"Wolverhampton City Council","http://opendatacommunities.org/id/metropolitan-district-council/wolverhampton","POSTURITE LTD",54.99,"Legal Services","7399","Equipment - Purchase","16/04/2019"
"Wolverhampton City Council","http://opendatacommunities.org/id/metropolitan-district-council/wolverhampton","IANSYST LTD",197.5,"CIN/CP Social Work Unit - Area 8","7372","Computing - Purchase of Hardware","16/04/2019"
"Wolverhampton City Council","http://opendatacommunities.org/id/metropolitan-district-council/wolverhampton","DRU (UK) LTD",240,"Bert Williams Leisure Centre","7298","Educ Trips, Holidays, Outings, Activity","15/04/2019"
"Wolverhampton City Council","http://opendatacommunities.org/id/metropolitan-district-council/wolverhampton","GODADDY COM EUROPE",56.18,"Mayoral Expenses","4816","Computing - Purchase of Software","15/04/2019"
"Wolverhampton City Council","http://opendatacommunities.org/id/metropolitan-district-council/wolverhampton","Trainline",60.54,"LAC Transitions Team","4112","Client Allowances","15/04/2019"
"Wolverhampton City Council","http://opendatacommunities.org/id/metropolitan-district-council/wolverhampton","ASDA GROCERIES ONLINE",5,"Upper Pendeford Farm Childrens Home","5411","Provisions (Not for resale)","15/04/2019"
"Wolverhampton City Council","http://opendatacommunities.org/id/metropolitan-district-council/wolverhampton","ASDA GROCERIES ONLINE",-14.82,"Upper Pendeford Farm Childrens Home","5411","Provisions (Not for resale)","15/04/2019"
"Wolverhampton City Council","http://opendatacommunities.org/id/metropolitan-district-council/wolverhampton","ASDA GROCERIES ONLINE",228.53,"Upper Pendeford Farm Childrens Home","5411","Provisions (Not for resale)","15/04/2019"
"Wolverhampton City Council","http://opendatacommunities.org/id/metropolitan-district-council/wolverhampton","WWW.GDHA.COM",99,"Upper Pendeford Farm Childrens Home","5065","Equipment - R & M","15/04/2019"
"Wolverhampton City Council","http://opendatacommunities.org/id/metropolitan-district-council/wolverhampton","WM MORRISONS STORE",19.5,"Bilston Market & Licensed Operations","5411","Provisions (Not for resale)","15/04/2019"
"Wolverhampton City Council","http://opendatacommunities.org/id/metropolitan-district-council/wolverhampton","ITUNES.COM/BILL",2.07,"Corporate Parenting","5735","Computing - Purchase of Software","15/04/2019"
"Wolverhampton City Council","http://opendatacommunities.org/id/metropolitan-district-council/wolverhampton","WM MORRISONS STORE",17.88,"Bilston Market & Licensed Operations","5411","Provisions (Not for resale)","15/04/2019"
"Wolverhampton City Council","http://opendatacommunities.org/id/metropolitan-district-council/wolverhampton","LAPTOPSCREEN.CO.UK",226.38,"Strategic ICTS (ICT Serv Budget)","5734","Computing - Purchase of Software","15/04/2019"
"Wolverhampton City Council","http://opendatacommunities.org/id/metropolitan-district-council/wolverhampton","AMZNMKTPLACE AMAZON.CO",23.72,"Community Pathways","5999","Materials","15/04/2019"
"Wolverhampton City Council","http://opendatacommunities.org/id/metropolitan-district-council/wolverhampton","Amazon.co.uk MZ6408HZ4",185.26,"CAT","5969","Equipment - Purchase","15/04/2019"
"Wolverhampton City Council","http://opendatacommunities.org/id/metropolitan-district-council/wolverhampton","SAINSBURYS (2340)",10.9,"Duke Street Bungalows","5411","R4010","15/04/2019"
"Wolverhampton City Council","http://opendatacommunities.org/id/metropolitan-district-council/wolverhampton","FINDEL EDUCATION",225.98,"Learning Technologies","5969","Equipment - Purchase","15/04/2019"
"Wolverhampton City Council","http://opendatacommunities.org/id/metropolitan-district-council/wolverhampton","SurveyMonkey",320,"Learning Technologies","7372","Computing - Purchase of Software","15/04/2019"
"Wolverhampton City Council","http://opendatacommunities.org/id/metropolitan-district-council/wolverhampton","WISHTRAC HOUSE LTD",139.8,"Learning Technologies","5732","Equipment - Purchase","15/04/2019"
"Wolverhampton City Council","http://opendatacommunities.org/id/metropolitan-district-council/wolverhampton","AMZN Mktp UK MZ7IM65M4",20.27,"Global Budgets","5942","Books","15/04/2019"
"Wolverhampton City Council","http://opendatacommunities.org/id/metropolitan-district-council/wolverhampton","WP-CENTRAL TAXIS L",25.8,"LAC Team","4121","Client Transport","15/04/2019"
"Wolverhampton City Council","http://opendatacommunities.org/id/metropolitan-district-council/wolverhampton","ASDA GROCERIES ONLINE",79.2,"Ernest Bold Court","5411","Provisions (Not for resale)","15/04/2019"
"Wolverhampton City Council","http://opendatacommunities.org/id/metropolitan-district-council/wolverhampton","BARCLAYS",200,"Duke Street Bungalows","6011","Provisions (Not for resale)","15/04/2019"
"Wolverhampton City Council","http://opendatacommunities.org/id/metropolitan-district-council/wolverhampton","AA MEMBERSHIP R/T",154.93,"Fleet Management","5968","Subscriptions","15/04/2019"
"Wolverhampton City Council","http://opendatacommunities.org/id/metropolitan-district-council/wolverhampton","WWW.SJA.ORG.UK",135,"Music Support Team","8398","Services - Professional Fees","15/04/2019"
"Wolverhampton City Council","http://opendatacommunities.org/id/metropolitan-district-council/wolverhampton","Trainline.com",6.97,"CIN/CP Social Work Unit - Area 8","7922","Section 17","15/04/2019"
"Wolverhampton City Council","http://opendatacommunities.org/id/metropolitan-district-council/wolverhampton","AMZNMKTPLACE AMAZON.CO",16.66,"Northicote Farm","5999","Protective Clothing","15/04/2019"
"Wolverhampton City Council","http://opendatacommunities.org/id/metropolitan-district-council/wolverhampton","HM PASSPORT OFFICE",80.5,"LAC Transitions Team","9399","Client Allowances","15/04/2019"
"Wolverhampton City Council","http://opendatacommunities.org/id/metropolitan-district-council/wolverhampton","TFM FARM   COUNTRY",134.42,"Northicote Farm","0763","Equipment - Purchase","15/04/2019"
"Wolverhampton City Council","http://opendatacommunities.org/id/metropolitan-district-council/wolverhampton","AMZNMKTPLACE AMAZON.CO",14.99,"Northicote Farm","5999","Protective Clothing","15/04/2019"
"Wolverhampton City Council","http://opendatacommunities.org/id/metropolitan-district-council/wolverhampton","CUMMINGS BROTHERS LOCK",122,"-","7399","Equipment - Purchase","15/04/2019"
"Wolverhampton City Council","http://opendatacommunities.org/id/metropolitan-district-council/wolverhampton","SAINSBURYS SACAT (2340",13.3,"Key to Inspiration","5411","Provisions (Not for resale)","15/04/2019"
"Wolverhampton City Council","http://opendatacommunities.org/id/metropolitan-district-council/wolverhampton","ASDA STORE",128.65,"-","5411","Provisions (Not for resale)","15/04/2019"
"Wolverhampton City Council","http://opendatacommunities.org/id/metropolitan-district-council/wolverhampton","FARMFOODS- TIPTON",51.98,"Bradley Resource Centre","5411","Provisions (Not for resale)","15/04/2019"
"Wolverhampton City Council","http://opendatacommunities.org/id/metropolitan-district-council/wolverhampton","WWW.ICELAND.CO.UK",49.55,"Bradley Resource Centre","5411","Provisions (Not for resale)","15/04/2019"
"Wolverhampton City Council","http://opendatacommunities.org/id/metropolitan-district-council/wolverhampton","Cross Country Trains",104,"Strategic ICTS (ICT Serv Budget)","4112","Public Transport","15/04/2019"
"Wolverhampton City Council","http://opendatacommunities.org/id/metropolitan-district-council/wolverhampton","B&M RETAIL",335.75,"LAC Transitions Team","5310","Client Allowances","15/04/2019"
"Wolverhampton City Council","http://opendatacommunities.org/id/metropolitan-district-council/wolverhampton","ARGOS LTD",339.12,"LAC Transitions Team","5310","Client Allowances","15/04/2019"
"Wolverhampton City Council","http://opendatacommunities.org/id/metropolitan-district-council/wolverhampton","CURRYS S/S",479.68,"LAC Transitions Team","5732","Client Allowances","15/04/2019"
"Wolverhampton City Council","http://opendatacommunities.org/id/metropolitan-district-council/wolverhampton","HOME BARGAINS",32.66,"LAC Transitions Team","5251","Client Allowances","15/04/2019"
"Wolverhampton City Council","http://opendatacommunities.org/id/metropolitan-district-council/wolverhampton","HOME BARGAINS WOLVERHA",77.48,"LAC Transitions Team","5251","Client Allowances","15/04/2019"
"Wolverhampton City Council","http://opendatacommunities.org/id/metropolitan-district-council/wolverhampton","CHAMPIONS (UK) PLC",295.05,"Bilston Market & Licensed Operations","7399","Equipment - Purchase","15/04/2019"
"Wolverhampton City Council","http://opendatacommunities.org/id/metropolitan-district-council/wolverhampton","AMZNMKTPLACE AMAZON.CO",53.94,"Street Lighting Maintenance","5999","Equipment - Purchase","15/04/2019"
"Wolverhampton City Council","http://opendatacommunities.org/id/metropolitan-district-council/wolverhampton","SHELL ENERGY",125.71,"LAC Transitions Team","4900","Client Allowances","15/04/2019"
"Wolverhampton City Council","http://opendatacommunities.org/id/metropolitan-district-council/wolverhampton","NATWEST BANK",400,"NRPF","6011","No Recourse to Public Funds","15/04/2019"
"Wolverhampton City Council","http://opendatacommunities.org/id/metropolitan-district-council/wolverhampton","Amazon.co.uk MZ7MF65O4",5.13,"Regional Adoption Agency","5969","Equipment - Purchase","15/04/2019"
"Wolverhampton City Council","http://opendatacommunities.org/id/metropolitan-district-council/wolverhampton","POUNDLAND LTD 1463",7.05,"Headstart Phase 3","5310","Equipment - Purchase","15/04/2019"
"Wolverhampton City Council","http://opendatacommunities.org/id/metropolitan-district-council/wolverhampton","WWW.HOBARTUK.CO.UK",370.17,"Towers Outdoor Education Centre","5722","Fixtures and Fittings - Purchases","15/04/2019"
"Wolverhampton City Council","http://opendatacommunities.org/id/metropolitan-district-council/wolverhampton","INTERFLORA BRITISH UNI",41,"Fostering Team & Allowances","5992","Equipment - Purchase","15/04/2019"
"Wolverhampton City Council","http://opendatacommunities.org/id/metropolitan-district-council/wolverhampton","Cross Country Trains",108.8,"Court Team","4112","Public Transport","12/04/2019"
"Wolverhampton City Council","http://opendatacommunities.org/id/metropolitan-district-council/wolverhampton","Cross Country Trains",4.9,"Court Team","4112","Public Transport","12/04/2019"
"Wolverhampton City Council","http://opendatacommunities.org/id/metropolitan-district-council/wolverhampton","STAGECOACH SERVICE",16.95,"Court Team","4131","Public Transport","12/04/2019"
"Wolverhampton City Council","http://opendatacommunities.org/id/metropolitan-district-council/wolverhampton","WWW.NISBETS.COM",89,"Mayoral Expenses","5964","Hospitality","12/04/2019"
"Wolverhampton City Council","http://opendatacommunities.org/id/metropolitan-district-council/wolverhampton","000002200500000",100,"Childrens with Disabilities Team","6011","No Recourse to Public Funds","12/04/2019"
"Wolverhampton City Council","http://opendatacommunities.org/id/metropolitan-district-council/wolverhampton","000002200500000",250,"Childrens with Disabilities Team","6011","No Recourse to Public Funds","12/04/2019"
"Wolverhampton City Council","http://opendatacommunities.org/id/metropolitan-district-council/wolverhampton","AMZNMKTPLACE AMAZON.CO",26.5,"Regional Adoption Agency","5999","Catering","12/04/2019"
"Wolverhampton City Council","http://opendatacommunities.org/id/metropolitan-district-council/wolverhampton","AMZNMKTPLACE AMAZON.CO",4,"Regional Adoption Agency","5999","Equipment - Purchase","12/04/2019"
"Wolverhampton City Council","http://opendatacommunities.org/id/metropolitan-district-council/wolverhampton","AMZNMKTPLACE AMAZON.CO",5.41,"Adoption and Residence Team & Allowances","5999","Provisions (Not for resale)","12/04/2019"
"Wolverhampton City Council","http://opendatacommunities.org/id/metropolitan-district-council/wolverhampton","TESCO DELIVERY SAVER2",3.49,"Towers Outdoor Education Centre","5968","Provisions (Not for resale)","12/04/2019"
"Wolverhampton City Council","http://opendatacommunities.org/id/metropolitan-district-council/wolverhampton","Virgin Trains",229.1,"Fostering Team","4112","Public Transport","12/04/2019"
"Wolverhampton City Council","http://opendatacommunities.org/id/metropolitan-district-council/wolverhampton","HOME BARGAINS WOLVERHA",11.61,"Headstart Phase 3","5251","Equipment - Purchase","12/04/2019"
"Wolverhampton City Council","http://opendatacommunities.org/id/metropolitan-district-council/wolverhampton","AMZNMktplace",167.92,"Communications & Marketing - General","5999","Equipment - Purchase","12/04/2019"
"Wolverhampton City Council","http://opendatacommunities.org/id/metropolitan-district-council/wolverhampton","SAINSBURYS PFS (1340)",1.67,"Mayoral Expenses","5541","Vehicle Maintenance - Repairs","12/04/2019"
"Wolverhampton City Council","http://opendatacommunities.org/id/metropolitan-district-council/wolverhampton","Trainline",88.98,"Electoral Registration","4112","Public Transport","12/04/2019"
"Wolverhampton City Council","http://opendatacommunities.org/id/metropolitan-district-council/wolverhampton","NAMESCO",38.97,"City Direct","4816","Computing - Purchase of Software","12/04/2019"
"Wolverhampton City Council","http://opendatacommunities.org/id/metropolitan-district-council/wolverhampton","PSA Parts",306,"Strategic ICTS (ICT Serv Budget)","5732","Equipment - Purchase","12/04/2019"
"Wolverhampton City Council","http://opendatacommunities.org/id/metropolitan-district-council/wolverhampton","AMZNMktplace",27.08,"Central Baths","5999","Equipment - Purchase","12/04/2019"
"Wolverhampton City Council","http://opendatacommunities.org/id/metropolitan-district-council/wolverhampton","WWW.ARGOS.CO.UK",123.92,"LAC Transitions Team","5310","Client Allowances","12/04/2019"
"Wolverhampton City Council","http://opendatacommunities.org/id/metropolitan-district-council/wolverhampton","HUGHES",377,"LAC Transitions Team","5732","Client Allowances","12/04/2019"
"Wolverhampton City Council","http://opendatacommunities.org/id/metropolitan-district-council/wolverhampton","QUEENSWAY INTERIOR",379,"LAC Transitions Team","5712","Client Allowances","12/04/2019"
"Wolverhampton City Council","http://opendatacommunities.org/id/metropolitan-district-council/wolverhampton","HOME BARGAINS WOLVERHA",3.32,"LAC Transitions Team","5251","Client Allowances","12/04/2019"
"Wolverhampton City Council","http://opendatacommunities.org/id/metropolitan-district-council/wolverhampton","Amazon.co.uk MZ9829M34",22.81,"EIP Locality 1","5969","Equipment - Purchase","12/04/2019"
"Wolverhampton City Council","http://opendatacommunities.org/id/metropolitan-district-council/wolverhampton","CREST MEDICAL",41.7,"Blakenhall Commty & Healthy Living Ctr","5047","Equipment - Purchase","12/04/2019"
"Wolverhampton City Council","http://opendatacommunities.org/id/metropolitan-district-council/wolverhampton","123-REG.CO.UK",9.99,"Technical Support","4816","Computing - Purchase of Software","12/04/2019"
"Wolverhampton City Council","http://opendatacommunities.org/id/metropolitan-district-council/wolverhampton","POST OFFICE COUNTER",8.7,"LAC Team","9402","Comms - Postage","12/04/2019"
"Wolverhampton City Council","http://opendatacommunities.org/id/metropolitan-district-council/wolverhampton","WWW.SWIMMING.ORG",68,"Central Training","8699","Training Expenses","12/04/2019"
"Wolverhampton City Council","http://opendatacommunities.org/id/metropolitan-district-council/wolverhampton","AMZNMKTPLACE AMAZON.CO",23.41,"Director of Education","5999","Equipment - Purchase","12/04/2019"
"Wolverhampton City Council","http://opendatacommunities.org/id/metropolitan-district-council/wolverhampton","Virgin Trains",79.35,"Destitute Plus","4112","Public Transport","12/04/2019"
"Wolverhampton City Council","http://opendatacommunities.org/id/metropolitan-district-council/wolverhampton","KONICA MINOLTA BUSINES",57.33,"Music Support Team","7399","Equipment - R & M","12/04/2019"
"Wolverhampton City Council","http://opendatacommunities.org/id/metropolitan-district-council/wolverhampton","AMZNMKTPLACE AMAZON.CO",62.25,"Planning","5999","Equipment - Purchase","12/04/2019"
"Wolverhampton City Council","http://opendatacommunities.org/id/metropolitan-district-council/wolverhampton","TFM FARM   COUNTRY",6.68,"Northicote Farm","0763","Equipment - Purchase","12/04/2019"
"Wolverhampton City Council","http://opendatacommunities.org/id/metropolitan-district-council/wolverhampton","AMZNMktplace",29.99,"Northicote Farm","5999","Equipment - Purchase","12/04/2019"
"Wolverhampton City Council","http://opendatacommunities.org/id/metropolitan-district-council/wolverhampton","J VAN VLIET BIRMINGHAM",24.49,"Creative Studies Delivery Area","5399","Materials for resale","11/04/2019"
"Wolverhampton City Council","http://opendatacommunities.org/id/metropolitan-district-council/wolverhampton","WWW.ICELAND.CO.UK",45.13,"Bradley Resource Centre","5411","Provisions (Not for resale)","11/04/2019"
"Wolverhampton City Council","http://opendatacommunities.org/id/metropolitan-district-council/wolverhampton","WWW.CSKILLS.ORG",30,"IMPACT","8249","Training Expenses","11/04/2019"
"Wolverhampton City Council","http://opendatacommunities.org/id/metropolitan-district-council/wolverhampton","ARGOS LTD",85.08,"LAC Transitions Team","5310","Client Allowances","11/04/2019"
"Wolverhampton City Council","http://opendatacommunities.org/id/metropolitan-district-council/wolverhampton","LUL TICKET MACHINE",8.17,"LAC Transitions Team","4112","Client Transport","11/04/2019"
"Wolverhampton City Council","http://opendatacommunities.org/id/metropolitan-district-council/wolverhampton","Trainline",5.43,"Visitor Economy - Development","4112","Public Transport","11/04/2019"
"Wolverhampton City Council","http://opendatacommunities.org/id/metropolitan-district-council/wolverhampton","Virgin Trains",75.6,"Director of Education","4112","Public Transport","11/04/2019"
"Wolverhampton City Council","http://opendatacommunities.org/id/metropolitan-district-council/wolverhampton","AMZNMktplace",53.94,"Street Lighting Maintenance","5999","Equipment - Purchase","11/04/2019"
"Wolverhampton City Council","http://opendatacommunities.org/id/metropolitan-district-council/wolverhampton","LONDON BOR'OF HILL",13,"Childrens with Disabilities Team","9399","Section 17","11/04/2019"
"Wolverhampton City Council","http://opendatacommunities.org/id/metropolitan-district-council/wolverhampton","LONDON BOR'OF HILL",13,"Childrens with Disabilities Team","9399","Section 17","11/04/2019"
"Wolverhampton City Council","http://opendatacommunities.org/id/metropolitan-district-council/wolverhampton","Virgin Trains",196.25,"Fostering Team & Allowances","4112","Public Transport","11/04/2019"
"Wolverhampton City Council","http://opendatacommunities.org/id/metropolitan-district-council/wolverhampton","Virgin Trains",100.1,"Fostering Team","4112","Public Transport","11/04/2019"
"Wolverhampton City Council","http://opendatacommunities.org/id/metropolitan-district-council/wolverhampton","WWW.PARTYRAMA.CO.UK",9.33,"WV Active Marketing","5999","Equipment - Purchase","11/04/2019"
"Wolverhampton City Council","http://opendatacommunities.org/id/metropolitan-district-council/wolverhampton","WWW.PARTYPIECES.CO.UK",21.93,"WV Active Marketing","5969","Equipment - Purchase","11/04/2019"
"Wolverhampton City Council","http://opendatacommunities.org/id/metropolitan-district-council/wolverhampton","HOVER",8.67,"Headstart Phase 3","7372","Computing - Purchase of Software","11/04/2019"
"Wolverhampton City Council","http://opendatacommunities.org/id/metropolitan-district-council/wolverhampton","POUNDLAND",43,"Bert Williams Leisure Centre","5310","Equipment - Purchase","11/04/2019"
"Wolverhampton City Council","http://opendatacommunities.org/id/metropolitan-district-council/wolverhampton","FACEBK 99YQHJEC22",250,"Business Support Services","7311","Marketing \ Non-staff advertising","11/04/2019"
"Wolverhampton City Council","http://opendatacommunities.org/id/metropolitan-district-council/wolverhampton","RESPONSTER PLUS PLAN",14.99,"City Direct","5734","Computing - Purchase of Software","11/04/2019"
"Wolverhampton City Council","http://opendatacommunities.org/id/metropolitan-district-council/wolverhampton","B&M RETAIL",16.99,"LAC Transitions Team","5310","Client Allowances","11/04/2019"
"Wolverhampton City Council","http://opendatacommunities.org/id/metropolitan-district-council/wolverhampton","PARTICIPANT UK LTD",283.2,"SWP - Infrastructure","4816","Training Expenses","11/04/2019"
"Wolverhampton City Council","http://opendatacommunities.org/id/metropolitan-district-council/wolverhampton","EBUYER (UK) LTD",28.97,"Strategic ICTS (ICT Serv Budget)","5722","Equipment - Purchase","11/04/2019"
"Wolverhampton City Council","http://opendatacommunities.org/id/metropolitan-district-council/wolverhampton","Trainline",94.02,"LAC Transitions Team","4112","Client Allowances","11/04/2019"
"Wolverhampton City Council","http://opendatacommunities.org/id/metropolitan-district-council/wolverhampton","WWW.WOLVERHAMPTON.GOV.",75.24,"LAC Transitions Team","9399","Client Allowances","11/04/2019"
"Wolverhampton City Council","http://opendatacommunities.org/id/metropolitan-district-council/wolverhampton","ASDA SUPERSTORE",143.05,"LAC Transitions Team","5411","Client Allowances","11/04/2019"
"Wolverhampton City Council","http://opendatacommunities.org/id/metropolitan-district-council/wolverhampton","Trainline.com",20.3,"SEN Special Education Admin","7922","Public Transport","11/04/2019"
"Wolverhampton City Council","http://opendatacommunities.org/id/metropolitan-district-council/wolverhampton","AMZN Mktp UK MZ6CC3VL4",14.43,"Global Budgets","5942","Books","11/04/2019"
"Wolverhampton City Council","http://opendatacommunities.org/id/metropolitan-district-council/wolverhampton","AMZNMktplace",27.99,"Global Budgets","5999","Books","11/04/2019"
"Wolverhampton City Council","http://opendatacommunities.org/id/metropolitan-district-council/wolverhampton","MILLERS JEWELLERS",150,"Long Service Awards","5944","Gratuities","11/04/2019"
"Wolverhampton City Council","http://opendatacommunities.org/id/metropolitan-district-council/wolverhampton","AMZNMktplace",10.99,"Civic Centre Catering","5999","Equipment - Purchase","11/04/2019"
"Wolverhampton City Council","http://opendatacommunities.org/id/metropolitan-district-council/wolverhampton","BUSINESS FORUMS INTERN",450,"Central Training","7392","Training Expenses","11/04/2019"
"Wolverhampton City Council","http://opendatacommunities.org/id/metropolitan-district-council/wolverhampton","ARGOS WOLVERHAMPTO",30,"Key to Inspiration","5310","Equipment - Purchase","10/04/2019"
"Wolverhampton City Council","http://opendatacommunities.org/id/metropolitan-district-council/wolverhampton","SAINSBURYS SACAT (2340",14,"Key to Inspiration","5411","Provisions (Not for resale)","10/04/2019"
"Wolverhampton City Council","http://opendatacommunities.org/id/metropolitan-district-council/wolverhampton","WWW.ICELAND.CO.UK",31.35,"Bradley Resource Centre","5411","Provisions (Not for resale)","10/04/2019"
"Wolverhampton City Council","http://opendatacommunities.org/id/metropolitan-district-council/wolverhampton","WWW.WMCA.CO.UK",56.5,"IMPACT","9399","Services - Fees and Charges","10/04/2019"
"Wolverhampton City Council","http://opendatacommunities.org/id/metropolitan-district-council/wolverhampton","WWW.WMCA.CO.UK",74,"IMPACT","9399","Services - Fees and Charges","10/04/2019"
"Wolverhampton City Council","http://opendatacommunities.org/id/metropolitan-district-council/wolverhampton","Trainline",78.35,"LAC Transitions Team","4112","Client Transport","10/04/2019"
"Wolverhampton City Council","http://opendatacommunities.org/id/metropolitan-district-council/wolverhampton","WM MORRISON FOOD.COM",106.67,"Discretionary Fund","5411","Materials","10/04/2019"
"Wolverhampton City Council","http://opendatacommunities.org/id/metropolitan-district-council/wolverhampton","SAINSBURYS 2040",25,"LAC Transitions Team","5411","Client Allowances","10/04/2019"
"Wolverhampton City Council","http://opendatacommunities.org/id/metropolitan-district-council/wolverhampton","Central Taxis Limited",23.8,"CAT","4121","Client Transport","10/04/2019"
"Wolverhampton City Council","http://opendatacommunities.org/id/metropolitan-district-council/wolverhampton","Central Taxis Limited",15.7,"CAT","4121","Client Transport","10/04/2019"
"Wolverhampton City Council","http://opendatacommunities.org/id/metropolitan-district-council/wolverhampton","NATWEST BANK",400,"NRPF","6011","No Recourse to Public Funds","10/04/2019"
"Wolverhampton City Council","http://opendatacommunities.org/id/metropolitan-district-council/wolverhampton","TESCO STORES 5194",69.29,"Towers Outdoor Education Centre","5411","Provisions (Not for resale)","10/04/2019"
"Wolverhampton City Council","http://opendatacommunities.org/id/metropolitan-district-council/wolverhampton","ROLL-A-RAMP EUROPE LTD",169,"Electoral Registration","7399","Equipment - Purchase","10/04/2019"
"Wolverhampton City Council","http://opendatacommunities.org/id/metropolitan-district-council/wolverhampton","PREMIER INN",92.08,"Fostering Team","3811","Services - Supplies & Services to users","10/04/2019"
"Wolverhampton City Council","http://opendatacommunities.org/id/metropolitan-district-council/wolverhampton","Virgin Trains",196.25,"Fostering Team & Allowances","4112","Public Transport","10/04/2019"
"Wolverhampton City Council","http://opendatacommunities.org/id/metropolitan-district-council/wolverhampton","BOCONLINE.CO.UK",54.04,"WV Active Marketing","5722","Equipment - Purchase","10/04/2019"
"Wolverhampton City Council","http://opendatacommunities.org/id/metropolitan-district-council/wolverhampton","MYPROTEIN.COM",64.4,"WV Active Marketing","5399","Equipment - Purchase","10/04/2019"
"Wolverhampton City Council","http://opendatacommunities.org/id/metropolitan-district-council/wolverhampton","ASDA SUPERSTORE",5.14,"Mayoral Expenses","5411","Hospitality","10/04/2019"
"Wolverhampton City Council","http://opendatacommunities.org/id/metropolitan-district-council/wolverhampton","CURRYS ONLINE",258.33,"LAC Transitions Team","5732","Client Allowances","10/04/2019"
"Wolverhampton City Council","http://opendatacommunities.org/id/metropolitan-district-council/wolverhampton","Trainline",7.17,"LAC Transitions Team","4112","Public Transport","10/04/2019"
"Wolverhampton City Council","http://opendatacommunities.org/id/metropolitan-district-council/wolverhampton","POUNDSTRETCHER 147",5,"Healthy Life Expectancy","5331","Catering","10/04/2019"
"Wolverhampton City Council","http://opendatacommunities.org/id/metropolitan-district-council/wolverhampton","RAYTON ELECT WSALERS L",45.76,"Public Conveniences","5999","R&M - Departmental planned (external)","10/04/2019"
"Wolverhampton City Council","http://opendatacommunities.org/id/metropolitan-district-council/wolverhampton","ASDA GROCERIES ONLINE",5,"Upper Pendeford Farm Childrens Home","5411","Provisions (Not for resale)","10/04/2019"
"Wolverhampton City Council","http://opendatacommunities.org/id/metropolitan-district-council/wolverhampton","Virgin Trains",190.7,"Private Sector Housing","4112","Public Transport","10/04/2019"
"Wolverhampton City Council","http://opendatacommunities.org/id/metropolitan-district-council/wolverhampton","SQUARESPACE INC.",151.65,"Learning Technologies","7372","Computing - Purchase of Software","10/04/2019"
"Wolverhampton City Council","http://opendatacommunities.org/id/metropolitan-district-council/wolverhampton","AMZNMktplace",30.33,"Global Budgets","5999","Books","10/04/2019"
"Wolverhampton City Council","http://opendatacommunities.org/id/metropolitan-district-council/wolverhampton","AMZN MKTP UK MZ6WV6XM4",19.18,"Civic Centre Catering","5942","Books","10/04/2019"
"Wolverhampton City Council","http://opendatacommunities.org/id/metropolitan-district-council/wolverhampton","UNTOUCHABLES",7.74,"Education Catering - General Overheads","5231","Materials","10/04/2019"
"Wolverhampton City Council","http://opendatacommunities.org/id/metropolitan-district-council/wolverhampton","THE BIG SHOP",230,"LAC Transitions Team","8398","Client Allowances","10/04/2019"
"Wolverhampton City Council","http://opendatacommunities.org/id/metropolitan-district-council/wolverhampton","THE COAL AUTHORITY",40.64,"Disposal Costs","9399","Services - Professional Fees","10/04/2019"
"Wolverhampton City Council","http://opendatacommunities.org/id/metropolitan-district-council/wolverhampton","AMZNMKTPLACE AMAZON.CO",35.08,"Ernest Bold Court","5999","Equipment - Purchase","10/04/2019"
"Wolverhampton City Council","http://opendatacommunities.org/id/metropolitan-district-council/wolverhampton","J VAN VLIET BIRMINGHAM",76.88,"Creative Studies Delivery Area","5399","Materials","10/04/2019"
"Wolverhampton City Council","http://opendatacommunities.org/id/metropolitan-district-council/wolverhampton","J VAN VLIET BIRMINGHAM",161.41,"Creative Studies Delivery Area","5399","Materials for resale","10/04/2019"
"Wolverhampton City Council","http://opendatacommunities.org/id/metropolitan-district-council/wolverhampton","AMZNMktplace",6.3,"Parks - East Area Management","5999","Equipment - Purchase","10/04/2019"
"Wolverhampton City Council","http://opendatacommunities.org/id/metropolitan-district-council/wolverhampton","Virgin Trains",62,"Fostering Team","4112","Public Transport","09/04/2019"
"Wolverhampton City Council","http://opendatacommunities.org/id/metropolitan-district-council/wolverhampton","GOOGLE  ADS9680351324",500,"Communications & Marketing - General","5968","Subscriptions","09/04/2019"
"Wolverhampton City Council","http://opendatacommunities.org/id/metropolitan-district-council/wolverhampton","CardtronicsUK",60.95,"Headstart Phase 3","6011","Financial Assistance In Exceptional Circ","09/04/2019"
"Wolverhampton City Council","http://opendatacommunities.org/id/metropolitan-district-council/wolverhampton","HOMERLECTRIC LTD",87,"Bert Williams Leisure Centre","5722","Equipment - Purchase","09/04/2019"
"Wolverhampton City Council","http://opendatacommunities.org/id/metropolitan-district-council/wolverhampton","HOMERLECTRIC LTD",200,"Bert Williams Leisure Centre","5722","Equipment - Purchase","09/04/2019"
"Wolverhampton City Council","http://opendatacommunities.org/id/metropolitan-district-council/wolverhampton","NAMESCO",59.97,"City Direct","4816","Computing - Purchase of Software","09/04/2019"
"Wolverhampton City Council","http://opendatacommunities.org/id/metropolitan-district-council/wolverhampton","CITY & GUILDS, LONDON",73.33,"Cemeteries","8398","Services - Supplies & Services to users","09/04/2019"
"Wolverhampton City Council","http://opendatacommunities.org/id/metropolitan-district-council/wolverhampton","HIGHSPEEDTRAINING.CO.U",125,"AES Staff Development","8244","Training Expenses","09/04/2019"
"Wolverhampton City Council","http://opendatacommunities.org/id/metropolitan-district-council/wolverhampton","WWW.WOLVERHAMPTON.GOV.",76.12,"LAC Transitions Team","9399","Client Allowances","09/04/2019"
"Wolverhampton City Council","http://opendatacommunities.org/id/metropolitan-district-council/wolverhampton","LIDL GB BILSTON",15.92,"Wolverhampton Indoor and Open Market","5411","Provisions (Not for resale)","09/04/2019"
"Wolverhampton City Council","http://opendatacommunities.org/id/metropolitan-district-council/wolverhampton","SCREWFIX DIRECT LT",24.99,"Cleaning of Buildings - General","5211","Protective Clothing","09/04/2019"
"Wolverhampton City Council","http://opendatacommunities.org/id/metropolitan-district-council/wolverhampton","CARVER/WOLVERHAMPTON/L",23.83,"Culwell Street Depot","5211","R&M - Departmental planned (external)","09/04/2019"
"Wolverhampton City Council","http://opendatacommunities.org/id/metropolitan-district-council/wolverhampton","ASDA GROCERIES ONLINE",142.13,"Duke Street Bungalows","5411","Provisions (Not for resale)","09/04/2019"
"Wolverhampton City Council","http://opendatacommunities.org/id/metropolitan-district-council/wolverhampton","POST OFFICE COUNTER",8.7,"LAC Team","9402","Comms - Postage","09/04/2019"
"Wolverhampton City Council","http://opendatacommunities.org/id/metropolitan-district-council/wolverhampton","123-REG.CO.UK",19.98,"Technical Support","4816","Computing - Purchase of Software","09/04/2019"
"Wolverhampton City Council","http://opendatacommunities.org/id/metropolitan-district-council/wolverhampton","ASDA GROCERIES ONLINE",69.38,"Ernest Bold Court","5411","Provisions (Not for resale)","09/04/2019"
"Wolverhampton City Council","http://opendatacommunities.org/id/metropolitan-district-council/wolverhampton","B.COM 637586-RCVY1 KAR",54,"Court Team","7011","Section 17","09/04/2019"
"Wolverhampton City Council","http://opendatacommunities.org/id/metropolitan-district-council/wolverhampton","J VAN VLIET BIRMINGHAM",91.7,"Creative Studies Delivery Area","5399","Materials","09/04/2019"
"Wolverhampton City Council","http://opendatacommunities.org/id/metropolitan-district-council/wolverhampton","WWW.TEALWASH.COM",182.5,"Wolverhampton Indoor and Open Market","1711","Equipment - Hire","09/04/2019"
"Wolverhampton City Council","http://opendatacommunities.org/id/metropolitan-district-council/wolverhampton","THE COAL AUTHORITY",82.9,"HRA General","9399","Services - Fees and Charges","09/04/2019"
"Wolverhampton City Council","http://opendatacommunities.org/id/metropolitan-district-council/wolverhampton","WWW.JA.NET",310,"Strategic ICTS (ICT Serv Budget)","8699","Subscriptions","09/04/2019"
"Wolverhampton City Council","http://opendatacommunities.org/id/metropolitan-district-council/wolverhampton","Trainline",123.63,"Strategic ICTS (ICT Serv Budget)","4112","Public Transport","09/04/2019"
"Wolverhampton City Council","http://opendatacommunities.org/id/metropolitan-district-council/wolverhampton","TESCO STORES 6727",3.33,"Youth Offending Team","5411","Provisions (Not for resale)","09/04/2019"
"Wolverhampton City Council","http://opendatacommunities.org/id/metropolitan-district-council/wolverhampton","LONDON BOR'OF HILL",37,"Childrens with Disabilities Team","9399","Section 17","09/04/2019"
"Wolverhampton City Council","http://opendatacommunities.org/id/metropolitan-district-council/wolverhampton","LONDON BOR'OF HILL",37,"Childrens with Disabilities Team","9399","Section 17","09/04/2019"
"Wolverhampton City Council","http://opendatacommunities.org/id/metropolitan-district-council/wolverhampton","B & Q 1112",5.83,"Towers Outdoor Education Centre","5211","Fixtures and Fittings - Purchases","09/04/2019"
"Wolverhampton City Council","http://opendatacommunities.org/id/metropolitan-district-council/wolverhampton","HALFORDS 0549",7.83,"Towers Outdoor Education Centre","5940","Fixtures and Fittings - Purchases","09/04/2019"
"Wolverhampton City Council","http://opendatacommunities.org/id/metropolitan-district-council/wolverhampton","TESCO STORES 5194",6.67,"Towers Outdoor Education Centre","5411","Equipment - Purchase","09/04/2019"
"Wolverhampton City Council","http://opendatacommunities.org/id/metropolitan-district-council/wolverhampton","CUMMINGS BROTHERS LOCK",39.5,"-","7399","Equipment - Purchase","08/04/2019"
"Wolverhampton City Council","http://opendatacommunities.org/id/metropolitan-district-council/wolverhampton","CUMMINGS BROTHERS LOCK",21.5,"-","7399","Equipment - Purchase","08/04/2019"
"Wolverhampton City Council","http://opendatacommunities.org/id/metropolitan-district-council/wolverhampton","CUMMINGS BROTHERS LOCK",15,"-","7399","Equipment - Purchase","08/04/2019"
"Wolverhampton City Council","http://opendatacommunities.org/id/metropolitan-district-council/wolverhampton","DUNELM ONLINE ORDER",-61.99,"Key to Inspiration","5714","Equipment - Purchase","08/04/2019"
"Wolverhampton City Council","http://opendatacommunities.org/id/metropolitan-district-council/wolverhampton","WWW.ICELAND.CO.UK",68.8,"Bradley Resource Centre","5411","Provisions (Not for resale)","08/04/2019"
"Wolverhampton City Council","http://opendatacommunities.org/id/metropolitan-district-council/wolverhampton","AMZNMktplace",7.99,"Adoption and Residence Team & Allowances","5999","Equipment - Purchase","08/04/2019"
"Wolverhampton City Council","http://opendatacommunities.org/id/metropolitan-district-council/wolverhampton","AMZNMktplace",15.98,"Adoption and Residence Team & Allowances","5999","Stationery","08/04/2019"
"Wolverhampton City Council","http://opendatacommunities.org/id/metropolitan-district-council/wolverhampton","WWW.PARTYRAMA.CO.UK",75.22,"WV Active Marketing","5999","Equipment - Purchase","08/04/2019"
"Wolverhampton City Council","http://opendatacommunities.org/id/metropolitan-district-council/wolverhampton","WWW.ARGOS.CO.UK",190.78,"LAC Transitions Team","5310","Client Allowances","08/04/2019"
"Wolverhampton City Council","http://opendatacommunities.org/id/metropolitan-district-council/wolverhampton","ITUNES.COM/BILL",0.79,"Strategic ICTS (ICT Serv Budget)","5735","Computing - Purchase of Software","08/04/2019"
"Wolverhampton City Council","http://opendatacommunities.org/id/metropolitan-district-council/wolverhampton","WM MORRISONS STORE",123.02,"Bradley Resource Centre","5411","Provisions (Not for resale)","08/04/2019"
"Wolverhampton City Council","http://opendatacommunities.org/id/metropolitan-district-council/wolverhampton","THE TEFL ACADEMY-GBP",249,"IMPACT","5999","Equipment - Purchase","08/04/2019"
"Wolverhampton City Council","http://opendatacommunities.org/id/metropolitan-district-council/wolverhampton","AMZNMKTPLACE AMAZON.CO",17.86,"Civic Centre Catering","5999","Equipment - Purchase","08/04/2019"
"Wolverhampton City Council","http://opendatacommunities.org/id/metropolitan-district-council/wolverhampton","DART-CHARGE",115.5,"LAC Transitions Team","4784","Car Allowances","08/04/2019"
"Wolverhampton City Council","http://opendatacommunities.org/id/metropolitan-district-council/wolverhampton","Virgin Trains",132.3,"LAC Team","4112","Public Transport","08/04/2019"
"Wolverhampton City Council","http://opendatacommunities.org/id/metropolitan-district-council/wolverhampton","Virgin Trains",81,"LAC Team","4112","Public Transport","08/04/2019"
"Wolverhampton City Council","http://opendatacommunities.org/id/metropolitan-district-council/wolverhampton","WP-CENTRAL TAXIS L",130.1,"LAC Team","4121","Client Transport","08/04/2019"
"Wolverhampton City Council","http://opendatacommunities.org/id/metropolitan-district-council/wolverhampton","Amazon.co.uk MZ3R12PK4",12.46,"Work Related Studies","5969","Equipment - Purchase","08/04/2019"
"Wolverhampton City Council","http://opendatacommunities.org/id/metropolitan-district-council/wolverhampton","Amazon.co.uk MZ1T95PK4",12.46,"Work Related Studies","5969","Equipment - Purchase","08/04/2019"
"Wolverhampton City Council","http://opendatacommunities.org/id/metropolitan-district-council/wolverhampton","Amazon.co.uk MZ1TY9P84",12.46,"Work Related Studies","5969","Equipment - Purchase","08/04/2019"
"Wolverhampton City Council","http://opendatacommunities.org/id/metropolitan-district-council/wolverhampton","Amazon.co.uk MZ91R0PP4",12.46,"Work Related Studies","5969","Equipment - Purchase","08/04/2019"
"Wolverhampton City Council","http://opendatacommunities.org/id/metropolitan-district-council/wolverhampton","Amazon.co.uk MZ1NY1PR4",180.45,"Creative Studies Delivery Area","5969","Equipment - Purchase","08/04/2019"
"Wolverhampton City Council","http://opendatacommunities.org/id/metropolitan-district-council/wolverhampton","Amazon.co.uk MZ0331P54",12.46,"Work Related Studies","5969","Equipment - Purchase","08/04/2019"
"Wolverhampton City Council","http://opendatacommunities.org/id/metropolitan-district-council/wolverhampton","Amazon.co.uk MZ0TM7PI4",12.46,"Work Related Studies","5969","Equipment - Purchase","08/04/2019"
"Wolverhampton City Council","http://opendatacommunities.org/id/metropolitan-district-council/wolverhampton","AMZNMktplace",23.24,"ICT Services","5999","Equipment - Purchase","08/04/2019"
"Wolverhampton City Council","http://opendatacommunities.org/id/metropolitan-district-council/wolverhampton","ASDA GROCERIES ONLINE",35.22,"Creative Studies Delivery Area","5411","Provisions (Not for resale)","08/04/2019"
"Wolverhampton City Council","http://opendatacommunities.org/id/metropolitan-district-council/wolverhampton","WWW.FIREANDSAFETYCENTR",42.1,"Central Costs","1799","R&M - Departmental response (external)","08/04/2019"
"Wolverhampton City Council","http://opendatacommunities.org/id/metropolitan-district-council/wolverhampton","REPLACEYOURLAMP.CO.UK",43.21,"ICT Services","5712","Equipment - Purchase","08/04/2019"
"Wolverhampton City Council","http://opendatacommunities.org/id/metropolitan-district-council/wolverhampton","SP   GATEHOUSE MEDIA L",300,"Central Costs","5734","Computing - Purchase of Software","08/04/2019"
"Wolverhampton City Council","http://opendatacommunities.org/id/metropolitan-district-council/wolverhampton","WWW.CARESHOP.CO.UK",26.97,"Ernest Bold Court","5999","Equipment - Purchase","08/04/2019"
"Wolverhampton City Council","http://opendatacommunities.org/id/metropolitan-district-council/wolverhampton","IZ  JMF",200,"Wolverhampton Indoor and Open Market","5999","Equipment - Purchase","08/04/2019"
"Wolverhampton City Council","http://opendatacommunities.org/id/metropolitan-district-council/wolverhampton","SHROPSHIRE COUNCIL",3.6,"Wolverhampton Indoor and Open Market","7523","Car Allowances","08/04/2019"
"Wolverhampton City Council","http://opendatacommunities.org/id/metropolitan-district-council/wolverhampton","Virgin Trains",100.7,"Wolverhampton Indoor and Open Market","4112","Public Transport","08/04/2019"
"Wolverhampton City Council","http://opendatacommunities.org/id/metropolitan-district-council/wolverhampton","000002200500000",10,"Carers Support","6011","Financial Assistance In Exceptional Circ","08/04/2019"
"Wolverhampton City Council","http://opendatacommunities.org/id/metropolitan-district-council/wolverhampton","THE BOOK SERVICE LTD T",-319.56,"Art Gallery","5942","Books","08/04/2019"
"Wolverhampton City Council","http://opendatacommunities.org/id/metropolitan-district-council/wolverhampton","WWW.ARGOS.CO.UK",185.45,"LAC Transitions Team","5310","Financial Assistance In Exceptional Circ","08/04/2019"
"Wolverhampton City Council","http://opendatacommunities.org/id/metropolitan-district-council/wolverhampton","HM PASSPORT OFFICE",58.5,"LAC Team","9399","Financial Assistance In Exceptional Circ","08/04/2019"
"Wolverhampton City Council","http://opendatacommunities.org/id/metropolitan-district-council/wolverhampton","HERON FOODS LTD",28.72,"Ernest Bold Court","5499","Provisions (Not for resale)","08/04/2019"
"Wolverhampton City Council","http://opendatacommunities.org/id/metropolitan-district-council/wolverhampton","ASDA GROCERIES ONLINE",55.27,"Ernest Bold Court","5411","Provisions (Not for resale)","08/04/2019"
"Wolverhampton City Council","http://opendatacommunities.org/id/metropolitan-district-council/wolverhampton","Trainline.com",257.89,"Court Team","7922","Public Transport","08/04/2019"
"Wolverhampton City Council","http://opendatacommunities.org/id/metropolitan-district-council/wolverhampton","NATWEST BANK",200,"NRPF","6011","No Recourse to Public Funds","08/04/2019"
"Wolverhampton City Council","http://opendatacommunities.org/id/metropolitan-district-council/wolverhampton","WP-CENTRAL TAXIS L",16,"CAT","4121","Section 17","08/04/2019"
"Wolverhampton City Council","http://opendatacommunities.org/id/metropolitan-district-council/wolverhampton","WP-CENTRAL TAXIS L",31.9,"CAT","4121","Section 17","08/04/2019"
"Wolverhampton City Council","http://opendatacommunities.org/id/metropolitan-district-council/wolverhampton","WHITEPAPER.CO.UK",179,"Central Training","5734","Training Expenses","08/04/2019"
"Wolverhampton City Council","http://opendatacommunities.org/id/metropolitan-district-council/wolverhampton","Virgin Trains",-184,"Welfare Rights","4112","Public Transport","08/04/2019"
"Wolverhampton City Council","http://opendatacommunities.org/id/metropolitan-district-council/wolverhampton","Trainline.com",95.64,"Legal Services","7922","Public Transport","08/04/2019"
"Wolverhampton City Council","http://opendatacommunities.org/id/metropolitan-district-council/wolverhampton","TVLICENSING.CO.UK",154.5,"Children & Family Contact Services","7392","Equipment - Purchase","08/04/2019"
"Wolverhampton City Council","http://opendatacommunities.org/id/metropolitan-district-council/wolverhampton","PAYPAL  WICKESBUILD",187.5,"Northicote Farm","5099","Materials","08/04/2019"
"Wolverhampton City Council","http://opendatacommunities.org/id/metropolitan-district-council/wolverhampton","NATWEST BANK",200,"NRPF","6011","No Recourse to Public Funds","08/04/2019"
"Wolverhampton City Council","http://opendatacommunities.org/id/metropolitan-district-council/wolverhampton","WWW.WOLVERHAMPTON.GOV.",443.2,"LAC Transitions Team","9399","Client Allowances","05/04/2019"
"Wolverhampton City Council","http://opendatacommunities.org/id/metropolitan-district-council/wolverhampton","WWW.WOLVERHAMPTON.GOV.",500,"LAC Transitions Team","9399","Client Allowances","05/04/2019"
"Wolverhampton City Council","http://opendatacommunities.org/id/metropolitan-district-council/wolverhampton","ICELAND",10.3,"Carers Support","5411","Provisions (Not for resale)","05/04/2019"
"Wolverhampton City Council","http://opendatacommunities.org/id/metropolitan-district-council/wolverhampton","ARGOS LTD",19.99,"Education Catering - General Overheads","5310","Equipment - Purchase","05/04/2019"
"Wolverhampton City Council","http://opendatacommunities.org/id/metropolitan-district-council/wolverhampton","WWW.PROVAC.CO.UK",29.33,"Blakenhall Commty & Healthy Living Ctr","2842","Cleaning Supplies and Materials","05/04/2019"
"Wolverhampton City Council","http://opendatacommunities.org/id/metropolitan-district-council/wolverhampton","Woolovers Limited",46.62,"Art Gallery","5681","Equipment - Purchase","05/04/2019"
"Wolverhampton City Council","http://opendatacommunities.org/id/metropolitan-district-council/wolverhampton","JSB CATERING",198,"Head of Service - CINCP","5811","Catering","05/04/2019"
"Wolverhampton City Council","http://opendatacommunities.org/id/metropolitan-district-council/wolverhampton","EB  NAIRO TRAINING CHI",700,"Workforce Development","7399","Training Expenses","05/04/2019"
"Wolverhampton City Council","http://opendatacommunities.org/id/metropolitan-district-council/wolverhampton","RICARDO-AEA LTD",933.5,"Central Training","7392","Training Expenses","05/04/2019"
"Wolverhampton City Council","http://opendatacommunities.org/id/metropolitan-district-council/wolverhampton","RICARDO-AEA LTD",933.5,"Central Training","7392","Training Expenses","05/04/2019"
"Wolverhampton City Council","http://opendatacommunities.org/id/metropolitan-district-council/wolverhampton","Virgin Trains",184,"Welfare Rights","4112","Public Transport","05/04/2019"
"Wolverhampton City Council","http://opendatacommunities.org/id/metropolitan-district-council/wolverhampton","J VAN VLIET BIRMINGHAM",107.35,"Creative Studies Delivery Area","5399","Materials for resale","05/04/2019"
"Wolverhampton City Council","http://opendatacommunities.org/id/metropolitan-district-council/wolverhampton","J VAN VLIET BIRMINGHAM",84.55,"Creative Studies Delivery Area","5399","Materials for resale","05/04/2019"
"Wolverhampton City Council","http://opendatacommunities.org/id/metropolitan-district-council/wolverhampton","J VAN VLIET BIRMINGHAM",59,"Creative Studies Delivery Area","5399","Materials for resale","05/04/2019"
"Wolverhampton City Council","http://opendatacommunities.org/id/metropolitan-district-council/wolverhampton","ROOKERY Sainsburys Ba",200,"Duke Street Bungalows","6011","Provisions (Not for resale)","05/04/2019"
"Wolverhampton City Council","http://opendatacommunities.org/id/metropolitan-district-council/wolverhampton","HOME BARGAINS",11.27,"Duke Street Bungalows","5251","R4010","05/04/2019"
"Wolverhampton City Council","http://opendatacommunities.org/id/metropolitan-district-council/wolverhampton","Virgin Trains",71.1,"Information Governance Team","4112","Public Transport","05/04/2019"
"Wolverhampton City Council","http://opendatacommunities.org/id/metropolitan-district-council/wolverhampton","CO-OP GROUP 070362",11.6,"Northicote Farm","5411","Provisions (Not for resale)","05/04/2019"
"Wolverhampton City Council","http://opendatacommunities.org/id/metropolitan-district-council/wolverhampton","AMZNMktplace",98.68,"Northicote Farm","5999","Equipment - Purchase","05/04/2019"
"Wolverhampton City Council","http://opendatacommunities.org/id/metropolitan-district-council/wolverhampton","TFM FARM   COUNTRY",110.78,"Northicote Farm","0763","Equipment - Purchase","05/04/2019"
"Wolverhampton City Council","http://opendatacommunities.org/id/metropolitan-district-council/wolverhampton","DUDLEY ZOOLOGICAL GARD",50,"Corporate Parenting","7998","Educ Trips, Holidays, Outings, Activity","05/04/2019"
"Wolverhampton City Council","http://opendatacommunities.org/id/metropolitan-district-council/wolverhampton","ARGOS LTD",52.99,"LAC Transitions Team","5310","Client Allowances","05/04/2019"
"Wolverhampton City Council","http://opendatacommunities.org/id/metropolitan-district-council/wolverhampton","HOME BARGAINS",16.15,"LAC Transitions Team","5251","Client Allowances","05/04/2019"
"Wolverhampton City Council","http://opendatacommunities.org/id/metropolitan-district-council/wolverhampton","CT SANDWELL",105,"LAC Transitions Team","8398","Client Allowances","05/04/2019"
"Wolverhampton City Council","http://opendatacommunities.org/id/metropolitan-district-council/wolverhampton","WEST MID TRAVEL",436.35,"IMPACT","4131","Public Transport","05/04/2019"
"Wolverhampton City Council","http://opendatacommunities.org/id/metropolitan-district-council/wolverhampton","WM MORRISONS STORE",186.59,"Bradley Resource Centre","5411","Provisions (Not for resale)","05/04/2019"
"Wolverhampton City Council","http://opendatacommunities.org/id/metropolitan-district-council/wolverhampton","PREMIER INN",55.5,"Childrens with Disabilities Team","3811","Section 17","05/04/2019"
"Wolverhampton City Council","http://opendatacommunities.org/id/metropolitan-district-council/wolverhampton","ADVENTURE CLIMB RESCUE",200,"Towers Outdoor Education Centre","7999","Equipment - Purchase","05/04/2019"
"Wolverhampton City Council","http://opendatacommunities.org/id/metropolitan-district-council/wolverhampton","MONARCH CLEANERS LTD",455.8,"Towers Outdoor Education Centre","7216","Laundry Expenses","05/04/2019"
"Wolverhampton City Council","http://opendatacommunities.org/id/metropolitan-district-council/wolverhampton","HARLECH FOODSERVICE LT",203.07,"Towers Outdoor Education Centre","5422","Provisions (Not for resale)","05/04/2019"
"Wolverhampton City Council","http://opendatacommunities.org/id/metropolitan-district-council/wolverhampton","BUYAGIFT PLC",49,"Corporate Parenting","4722","Educ Trips, Holidays, Outings, Activity","05/04/2019"
"Wolverhampton City Council","http://opendatacommunities.org/id/metropolitan-district-council/wolverhampton","NORTHERN POTTERY LTD",313.21,"Towers Outdoor Education Centre","5999","Fixtures and Fittings - Purchases","05/04/2019"
"Wolverhampton City Council","http://opendatacommunities.org/id/metropolitan-district-council/wolverhampton","O E METCALFE",557.71,"Towers Outdoor Education Centre","5499","Provisions (Not for resale)","05/04/2019"
"Wolverhampton City Council","http://opendatacommunities.org/id/metropolitan-district-council/wolverhampton","CHEMSOL CYMRU LTD",182.56,"Towers Outdoor Education Centre","5199","Fixtures and Fittings - Purchases","05/04/2019"
"Wolverhampton City Council","http://opendatacommunities.org/id/metropolitan-district-council/wolverhampton","MONA LIFTING LIMITED",215.2,"Towers Outdoor Education Centre","5599","Equipment - Purchase","05/04/2019"
"Wolverhampton City Council","http://opendatacommunities.org/id/metropolitan-district-council/wolverhampton","FUEL CARD SERVICES LTD",398.84,"Towers Outdoor Education Centre","7399","Petrol","05/04/2019"
"Wolverhampton City Council","http://opendatacommunities.org/id/metropolitan-district-council/wolverhampton","SPAR SIOP TANDDERWEN",323.84,"Towers Outdoor Education Centre","5411","Provisions (Not for resale)","05/04/2019"
"Wolverhampton City Council","http://opendatacommunities.org/id/metropolitan-district-council/wolverhampton","STERMAT CAR AND VA",2864.74,"Towers Outdoor Education Centre","5541","Hire of Vehicles","05/04/2019"
"Wolverhampton City Council","http://opendatacommunities.org/id/metropolitan-district-council/wolverhampton","HN NUTTALL LTD",820.81,"Towers Outdoor Education Centre","5085","Provisions (Not for resale)","05/04/2019"
"Wolverhampton City Council","http://opendatacommunities.org/id/metropolitan-district-council/wolverhampton","C L JONES HEAD OFFICE",34.53,"Towers Outdoor Education Centre","5211","Fixtures and Fittings - Purchases","05/04/2019"
"Wolverhampton City Council","http://opendatacommunities.org/id/metropolitan-district-council/wolverhampton","AMZN Mktp UK MZ2UP1ET4",3.94,"Headstart Phase 3","5942","Equipment - Purchase","05/04/2019"
"Wolverhampton City Council","http://opendatacommunities.org/id/metropolitan-district-council/wolverhampton","CITY OF WOLVERHAMPTON",16,"LAC Team","9399","Services - Fees and Charges","05/04/2019"
"Wolverhampton City Council","http://opendatacommunities.org/id/metropolitan-district-council/wolverhampton","GEN REGISTER OFFICE",28,"LAC Team","9399","Services - Fees and Charges","05/04/2019"
"Wolverhampton City Council","http://opendatacommunities.org/id/metropolitan-district-council/wolverhampton","POST OFFICE COUNTER",76,"LAC Team","9402","Comms - Postage","05/04/2019"
"Wolverhampton City Council","http://opendatacommunities.org/id/metropolitan-district-council/wolverhampton","Hotel on Booking.com",33,"LAC Team","7011","Accommodation Costs","05/04/2019"
"Wolverhampton City Council","http://opendatacommunities.org/id/metropolitan-district-council/wolverhampton","CARVER/WOLVERHAMPTON/L",40,"Cleaning of Buildings - General","5211","Materials","05/04/2019"
"Wolverhampton City Council","http://opendatacommunities.org/id/metropolitan-district-council/wolverhampton","ASDAN",218.4,"LAC Transitions Team","8299","Client Allowances","05/04/2019"
"Wolverhampton City Council","http://opendatacommunities.org/id/metropolitan-district-council/wolverhampton","SUBWAY",33.33,"Corporate Parenting","5812","Educ Trips, Holidays, Outings, Activity","04/04/2019"
"Wolverhampton City Council","http://opendatacommunities.org/id/metropolitan-district-council/wolverhampton","CO-OPERATIVE FOOD",8.33,"Corporate Parenting","5411","Educ Trips, Holidays, Outings, Activity","04/04/2019"
"Wolverhampton City Council","http://opendatacommunities.org/id/metropolitan-district-council/wolverhampton","D E S LTD",131.62,"Document Centre - General","8911","Equipment - Purchase","04/04/2019"
"Wolverhampton City Council","http://opendatacommunities.org/id/metropolitan-district-council/wolverhampton","SEVERN TRENT WATER",56.04,"LAC Transitions Team","4900","Client Allowances","04/04/2019"
"Wolverhampton City Council","http://opendatacommunities.org/id/metropolitan-district-council/wolverhampton","SEVERN TRENT WATER",60.12,"LAC Transitions Team","4900","Client Allowances","04/04/2019"
"Wolverhampton City Council","http://opendatacommunities.org/id/metropolitan-district-council/wolverhampton","NATWEST BANK",400,"NRPF","6011","No Recourse to Public Funds","04/04/2019"
"Wolverhampton City Council","http://opendatacommunities.org/id/metropolitan-district-council/wolverhampton","CURRYS S/S",150,"Long Service Awards","5732","Gratuities","04/04/2019"
"Wolverhampton City Council","http://opendatacommunities.org/id/metropolitan-district-council/wolverhampton","SAINSBURYS SACAT (2340",2.6,"Mayoral Expenses","5411","Hospitality","04/04/2019"
"Wolverhampton City Council","http://opendatacommunities.org/id/metropolitan-district-council/wolverhampton","TESCO STORES 5194",-2.49,"Towers Outdoor Education Centre","5411","Provisions (Not for resale)","04/04/2019"
"Wolverhampton City Council","http://opendatacommunities.org/id/metropolitan-district-council/wolverhampton","EB  BID WRITING THE BA",79.17,"Headstart Hubs","7399","Training Expenses","04/04/2019"
"Wolverhampton City Council","http://opendatacommunities.org/id/metropolitan-district-council/wolverhampton","EB  BID WRITING ADVANC",79.17,"Headstart Hubs","7399","Training Expenses","04/04/2019"
"Wolverhampton City Council","http://opendatacommunities.org/id/metropolitan-district-council/wolverhampton","BLACK COUNTRY CHAMBER",210,"Education Business Partnership","7399","Subscriptions","04/04/2019"
"Wolverhampton City Council","http://opendatacommunities.org/id/metropolitan-district-council/wolverhampton","BLACK COUNTRY CHAMBER",210,"Education Business Partnership","7399","Subscriptions","04/04/2019"
"Wolverhampton City Council","http://opendatacommunities.org/id/metropolitan-district-council/wolverhampton","PP WEBFITTINGS",27.5,"Cemeteries","5932","Services - Professional Fees","04/04/2019"
"Wolverhampton City Council","http://opendatacommunities.org/id/metropolitan-district-council/wolverhampton","TFW RAIL SERVICES",8,"Curatorial - Cultural Learning","4112","Public Transport","04/04/2019"
"Wolverhampton City Council","http://opendatacommunities.org/id/metropolitan-district-council/wolverhampton","SEVERN TRENT WATER",7.08,"LAC Transitions Team","4900","Client Allowances","04/04/2019"
"Wolverhampton City Council","http://opendatacommunities.org/id/metropolitan-district-council/wolverhampton","Amazon.co.uk MZ7JR6AX4",18.22,"LAC Transitions Team","5969","Client Allowances","04/04/2019"
"Wolverhampton City Council","http://opendatacommunities.org/id/metropolitan-district-council/wolverhampton","Amazon.co.uk MZ7JG4A54",9.98,"LAC Transitions Team","5969","Client Allowances","04/04/2019"
"Wolverhampton City Council","http://opendatacommunities.org/id/metropolitan-district-council/wolverhampton","AMZNMktplace",111.65,"LAC Transitions Team","5999","Client Allowances","04/04/2019"
"Wolverhampton City Council","http://opendatacommunities.org/id/metropolitan-district-council/wolverhampton","AMZNMktplace",27.12,"Environmental Crime and Consumer Protect","5999","Equipment - Purchase","04/04/2019"
"Wolverhampton City Council","http://opendatacommunities.org/id/metropolitan-district-council/wolverhampton","VIRGIN MEDIA PYMTS",15,"Community Enablement","4814","Comms - Telephone Call charges","04/04/2019"
"Wolverhampton City Council","http://opendatacommunities.org/id/metropolitan-district-council/wolverhampton","Cross Country Trains",108.8,"Court Team","4112","Section 17","04/04/2019"
"Wolverhampton City Council","http://opendatacommunities.org/id/metropolitan-district-council/wolverhampton","Cross Country Trains",4.9,"Court Team","4112","Section 17","04/04/2019"
"Wolverhampton City Council","http://opendatacommunities.org/id/metropolitan-district-council/wolverhampton","NATWEST BANK",200,"NRPF","6011","Client Allowances","04/04/2019"
"Wolverhampton City Council","http://opendatacommunities.org/id/metropolitan-district-council/wolverhampton","NATWEST BANK",200,"NRPF","6011","Client Allowances","04/04/2019"
"Wolverhampton City Council","http://opendatacommunities.org/id/metropolitan-district-council/wolverhampton","STAGECOACH SERVICE",16.95,"Court Team","4131","Section 17","04/04/2019"
"Wolverhampton City Council","http://opendatacommunities.org/id/metropolitan-district-council/wolverhampton","SAINSBURYS (2340)",10.3,"Civic Centre Catering","5411","Provisions (Not for resale)","04/04/2019"
"Wolverhampton City Council","http://opendatacommunities.org/id/metropolitan-district-council/wolverhampton","SAINSBURYS SACAT 2040",15,"Duke Street Bungalows","5411","Cleaning Supplies and Materials","04/04/2019"
"Wolverhampton City Council","http://opendatacommunities.org/id/metropolitan-district-council/wolverhampton","SAINSBURYS SACAT 2040",25,"Duke Street Bungalows","5411","R4010","04/04/2019"
"Wolverhampton City Council","http://opendatacommunities.org/id/metropolitan-district-council/wolverhampton","THE COAL AUTHORITY",40.64,"Disposal Costs","9399","Services - Professional Fees","04/04/2019"
"Wolverhampton City Council","http://opendatacommunities.org/id/metropolitan-district-council/wolverhampton","CITY OF WOLVERHAMPTON",16,"IMPACT","9399","Services - Fees and Charges","03/04/2019"
"Wolverhampton City Council","http://opendatacommunities.org/id/metropolitan-district-council/wolverhampton","DULUX DECORATOR CENTRE",46.7,"Wildlife Photographer","5198","Materials","03/04/2019"
"Wolverhampton City Council","http://opendatacommunities.org/id/metropolitan-district-council/wolverhampton","PREMIER INN",90.99,"Private Hire Vehicles","3811","Services - Supplies & Services to users","03/04/2019"
"Wolverhampton City Council","http://opendatacommunities.org/id/metropolitan-district-council/wolverhampton","WM MORRISON FOOD.COM",127.39,"Discretionary Fund","5411","Materials","03/04/2019"
"Wolverhampton City Council","http://opendatacommunities.org/id/metropolitan-district-council/wolverhampton","WWW.ICELAND.CO.UK",134.66,"-","5411","Provisions (Not for resale)","03/04/2019"
"Wolverhampton City Council","http://opendatacommunities.org/id/metropolitan-district-council/wolverhampton","BEATSABAR MUSIC PROJEC",31.66,"Youth Offending Team","5733","Equipment - Purchase","03/04/2019"
"Wolverhampton City Council","http://opendatacommunities.org/id/metropolitan-district-council/wolverhampton","NATWEST BANK",400,"NRPF","6011","No Recourse to Public Funds","03/04/2019"
"Wolverhampton City Council","http://opendatacommunities.org/id/metropolitan-district-council/wolverhampton","WWW.ARGOS.CO.UK",72.45,"LAC Transitions Team","5310","Client Allowances","03/04/2019"
"Wolverhampton City Council","http://opendatacommunities.org/id/metropolitan-district-council/wolverhampton","TESCO STORES 5194",117.45,"Towers Outdoor Education Centre","5411","Provisions (Not for resale)","03/04/2019"
"Wolverhampton City Council","http://opendatacommunities.org/id/metropolitan-district-council/wolverhampton","MONARCH CLEANERS LTD",449.64,"Towers Outdoor Education Centre","7216","Laundry Expenses","03/04/2019"
"Wolverhampton City Council","http://opendatacommunities.org/id/metropolitan-district-council/wolverhampton","BLOXWICH  SST",7.4,"Economic Development","4112","Public Transport","03/04/2019"
"Wolverhampton City Council","http://opendatacommunities.org/id/metropolitan-district-council/wolverhampton","highstreetvouchers",404.25,"IMPACT","8641","Educ Trips, Holidays, Outings, Activity","03/04/2019"
"Wolverhampton City Council","http://opendatacommunities.org/id/metropolitan-district-council/wolverhampton","PRODUCT SUPPORT AG",6.66,"Headstart - Young People Engagement","5968","Computing - Maint Agreements","03/04/2019"
"Wolverhampton City Council","http://opendatacommunities.org/id/metropolitan-district-council/wolverhampton","PRODUCT SUPPORT AG",6.66,"Headstart - Young People Engagement","5968","Computing - Maint Agreements","03/04/2019"
"Wolverhampton City Council","http://opendatacommunities.org/id/metropolitan-district-council/wolverhampton","APPLE ONLINE STORE GBP",65.83,"WV Active Marketing","5732","Equipment - Purchase","03/04/2019"
"Wolverhampton City Council","http://opendatacommunities.org/id/metropolitan-district-council/wolverhampton","AMZNMKTPLACE AMAZON.CO",22.9,"SWP - Infrastructure","5999","R4009","03/04/2019"
"Wolverhampton City Council","http://opendatacommunities.org/id/metropolitan-district-council/wolverhampton","WILKO.COM",128.33,"LAC Transitions Team","5399","Client Allowances","03/04/2019"
"Wolverhampton City Council","http://opendatacommunities.org/id/metropolitan-district-council/wolverhampton","SCREWFIX WOLVERHAM",24.99,"Caretakers Community Centre","5211","Materials","03/04/2019"
"Wolverhampton City Council","http://opendatacommunities.org/id/metropolitan-district-council/wolverhampton","WP-CENTRAL TAXIS L",355.5,"LAC Team","4121","Client Transport","03/04/2019"
"Wolverhampton City Council","http://opendatacommunities.org/id/metropolitan-district-council/wolverhampton","000002200500000",20,"Emergency Duty Team","6011","Financial Assistance In Exceptional Circ","03/04/2019"
"Wolverhampton City Council","http://opendatacommunities.org/id/metropolitan-district-council/wolverhampton","LOW FELL REMOVALS",50,"LAC Transitions Team","4214","Client Allowances","03/04/2019"
"Wolverhampton City Council","http://opendatacommunities.org/id/metropolitan-district-council/wolverhampton","ARGOS RETAIL GROUP",20.82,"LAC Transitions Team","5310","Client Allowances","03/04/2019"
"Wolverhampton City Council","http://opendatacommunities.org/id/metropolitan-district-council/wolverhampton","AMZNMktplace",166.66,"LAC Transitions Team","5999","Client Allowances","03/04/2019"
"Wolverhampton City Council","http://opendatacommunities.org/id/metropolitan-district-council/wolverhampton","TIPPERS WOLVERHAMPTON",36.61,"Cleaning of Buildings - General","5072","Equipment - Purchase","03/04/2019"
"Wolverhampton City Council","http://opendatacommunities.org/id/metropolitan-district-council/wolverhampton","Cross Country Trains",9,"Head of Strategic Commissioning � People","4112","Public Transport","03/04/2019"
"Wolverhampton City Council","http://opendatacommunities.org/id/metropolitan-district-council/wolverhampton","Virgin Trains",58.8,"Welfare Rights","4112","Public Transport","03/04/2019"
"Wolverhampton City Council","http://opendatacommunities.org/id/metropolitan-district-council/wolverhampton","HSBC CASH MACHINE",20,"Headstart - Young People Engagement","6011","Financial Assistance In Exceptional Circ","02/04/2019"
"Wolverhampton City Council","http://opendatacommunities.org/id/metropolitan-district-council/wolverhampton","AMZ Amazon.co.uk",-31.91,"Youth Offending Team","5969","Books","02/04/2019"
"Wolverhampton City Council","http://opendatacommunities.org/id/metropolitan-district-council/wolverhampton","LIDL GB WOLVERHAMPTON",2.75,"Cemeteries","5411","Provisions (Not for resale)","02/04/2019"
"Wolverhampton City Council","http://opendatacommunities.org/id/metropolitan-district-council/wolverhampton","JAMES LISTER & SONS LT",24,"Public Conveniences","5085","Equipment - Purchase","02/04/2019"
"Wolverhampton City Council","http://opendatacommunities.org/id/metropolitan-district-council/wolverhampton","Virgin Trains",242.8,"LAC Team","4112","Public Transport","02/04/2019"
"Wolverhampton City Council","http://opendatacommunities.org/id/metropolitan-district-council/wolverhampton","Trainline",61.36,"Curatorial - Cultural Learning","4112","Public Transport","02/04/2019"
"Wolverhampton City Council","http://opendatacommunities.org/id/metropolitan-district-council/wolverhampton","POST OFFICE COUNTER",7.4,"LAC Team","9402","Comms - Postage","02/04/2019"
"Wolverhampton City Council","http://opendatacommunities.org/id/metropolitan-district-council/wolverhampton","WWW.WMCA.CO.UK",44,"Creative Studies Delivery Area","9399","Public Transport","02/04/2019"
"Wolverhampton City Council","http://opendatacommunities.org/id/metropolitan-district-council/wolverhampton","IZ  D & K TRADING (MID",106.3,"Wolverhampton Indoor and Open Market","5999","Equipment - Purchase","02/04/2019"
"Wolverhampton City Council","http://opendatacommunities.org/id/metropolitan-district-council/wolverhampton","YOUNG`S SHOE REPAIRS L",19.85,"Wolverhampton Indoor and Open Market","7251","Fixtures and Fittings - R&M","02/04/2019"
"Wolverhampton City Council","http://opendatacommunities.org/id/metropolitan-district-council/wolverhampton","CARD FACTORY",4.33,"Children & Young People Support Costs","5947","Stationery","02/04/2019"
"Wolverhampton City Council","http://opendatacommunities.org/id/metropolitan-district-council/wolverhampton","Virgin Trains",294.6,"Children & Young People Support Costs","4112","Public Transport","02/04/2019"
"Wolverhampton City Council","http://opendatacommunities.org/id/metropolitan-district-council/wolverhampton","123-REG.CO.UK",49.95,"Technical Support","4816","Computing - Purchase of Software","02/04/2019"
"Wolverhampton City Council","http://opendatacommunities.org/id/metropolitan-district-council/wolverhampton","Virgin Trains",98.2,"Children & Young People Support Costs","4112","Public Transport","02/04/2019"
"Wolverhampton City Council","http://opendatacommunities.org/id/metropolitan-district-council/wolverhampton","ICELAND",10.25,"Head of Strategic Commissioning � People","5411","Provisions (Not for resale)","02/04/2019"
"Wolverhampton City Council","http://opendatacommunities.org/id/metropolitan-district-council/wolverhampton","123-REG.CO.UK",9.99,"Technical Support","4816","Computing - Purchase of Software","02/04/2019"
"Wolverhampton City Council","http://opendatacommunities.org/id/metropolitan-district-council/wolverhampton","1&1 INTERNET LIMITED",16.1,"Learning Technologies","4816","Computing - Purchase of Software","02/04/2019"
"Wolverhampton City Council","http://opendatacommunities.org/id/metropolitan-district-council/wolverhampton","ASDA GROCERIES ONLINE",61.69,"Ernest Bold Court","5411","Provisions (Not for resale)","02/04/2019"
"Wolverhampton City Council","http://opendatacommunities.org/id/metropolitan-district-council/wolverhampton","WICKES WOLVERHAMPTON",10,"Duke Street Bungalows","5211","Equipment - R & M","02/04/2019"
"Wolverhampton City Council","http://opendatacommunities.org/id/metropolitan-district-council/wolverhampton","SAFETYSHOP",52.25,"Education And Access","5099","Equipment - Purchase","02/04/2019"
"Wolverhampton City Council","http://opendatacommunities.org/id/metropolitan-district-council/wolverhampton","WM MORRISONS STORE",6.6,"Bradley Resource Centre","5411","Provisions (Not for resale)","02/04/2019"
"Wolverhampton City Council","http://opendatacommunities.org/id/metropolitan-district-council/wolverhampton","NATWEST BANK",200,"Court Team","6011","Section 17","02/04/2019"
"Wolverhampton City Council","http://opendatacommunities.org/id/metropolitan-district-council/wolverhampton","000002200500000",50,"Ernest Bold Court","6011","Provisions (Not for resale)","02/04/2019"
"Wolverhampton City Council","http://opendatacommunities.org/id/metropolitan-district-council/wolverhampton","NATWEST BANK",200,"CAT","6011","Section 17","02/04/2019"
"Wolverhampton City Council","http://opendatacommunities.org/id/metropolitan-district-council/wolverhampton","J VAN VLIET BIRMINGHAM",53.3,"Creative Studies Delivery Area","5399","Materials","02/04/2019"
"Wolverhampton City Council","http://opendatacommunities.org/id/metropolitan-district-council/wolverhampton","J VAN VLIET BIRMINGHAM",47,"Creative Studies Delivery Area","5399","Materials","02/04/2019"
"Wolverhampton City Council","http://opendatacommunities.org/id/metropolitan-district-council/wolverhampton","WWW.CARESHOP.CO.UK",90.02,"Ernest Bold Court","5999","Cleaning Supplies and Materials","02/04/2019"
"Wolverhampton City Council","http://opendatacommunities.org/id/metropolitan-district-council/wolverhampton","WOLVERHAMPTON T/O",9,"Street Lighting Maintenance","4112","Public Transport","02/04/2019"
"Wolverhampton City Council","http://opendatacommunities.org/id/metropolitan-district-council/wolverhampton","NATWEST BANK",400,"NRPF","6011","No Recourse to Public Funds","02/04/2019"
"Wolverhampton City Council","http://opendatacommunities.org/id/metropolitan-district-council/wolverhampton","ENJOY WOLVERHAMPTON",150,"Mayoral Expenses","5399","Gratuities","02/04/2019"
"Wolverhampton City Council","http://opendatacommunities.org/id/metropolitan-district-council/wolverhampton","Virgin Trains",195,"Fostering Team & Allowances","4112","Public Transport","02/04/2019"
"Wolverhampton City Council","http://opendatacommunities.org/id/metropolitan-district-council/wolverhampton","HALFORDS 0549",8.75,"Towers Outdoor Education Centre","5940","Fixtures and Fittings - Purchases","02/04/2019"
"Wolverhampton City Council","http://opendatacommunities.org/id/metropolitan-district-council/wolverhampton","WP-CENTRAL TAXIS L",74,"Fostering Team & Allowances","4121","Client Transport","02/04/2019"
"Wolverhampton City Council","http://opendatacommunities.org/id/metropolitan-district-council/wolverhampton","WP-CENTRAL TAXIS L",108.42,"Fostering Team & Allowances","4121","Client Transport","02/04/2019"
"Wolverhampton City Council","http://opendatacommunities.org/id/metropolitan-district-council/wolverhampton","ARGOS LTD",232.99,"LAC Transitions Team","5310","Client Allowances","01/04/2019"
"Wolverhampton City Council","http://opendatacommunities.org/id/metropolitan-district-council/wolverhampton","SPORTSDIRECT.COM",72.98,"Key to Inspiration","5941","Equipment - Purchase","01/04/2019"
"Wolverhampton City Council","http://opendatacommunities.org/id/metropolitan-district-council/wolverhampton","DUNELM ONLINE ORDER",103.99,"Key to Inspiration","5714","Fixtures and Fittings - Purchases","01/04/2019"
"Wolverhampton City Council","http://opendatacommunities.org/id/metropolitan-district-council/wolverhampton","ASDA GROCERIES ONLINE",131.54,"-","5411","Provisions (Not for resale)","01/04/2019"
"Wolverhampton City Council","http://opendatacommunities.org/id/metropolitan-district-council/wolverhampton","FACEBK PMGA8K2H52",68.87,"Visitor Economy - Development","7311","Marketing \ Non-staff advertising","01/04/2019"
"Wolverhampton City Council","http://opendatacommunities.org/id/metropolitan-district-council/wolverhampton","WWW.MEMBERS.LANDSCAPEI",375,"Landscape","0780","R&M - Departmental response (external)","01/04/2019"
"Wolverhampton City Council","http://opendatacommunities.org/id/metropolitan-district-council/wolverhampton","WWW.GOV.UK",10,"Revenues","8999","Services - Professional Fees","01/04/2019"
"Wolverhampton City Council","http://opendatacommunities.org/id/metropolitan-district-council/wolverhampton","ESSENTIALAIDS.COM LTD",30.54,"Assessment Team (West)","5047","Services - Professional Fees","01/04/2019"
"Wolverhampton City Council","http://opendatacommunities.org/id/metropolitan-district-council/wolverhampton","BOOKS BEYOND WORDS",40.49,"Outreach","5192","Books","01/04/2019"
"Wolverhampton City Council","http://opendatacommunities.org/id/metropolitan-district-council/wolverhampton","B&M RETAIL LTD",6.66,"LAC Transitions Team","5310","Client Allowances","01/04/2019"
"Wolverhampton City Council","http://opendatacommunities.org/id/metropolitan-district-council/wolverhampton","ARGOS LTD",32.48,"LAC Transitions Team","5310","Client Allowances","01/04/2019"
"Wolverhampton City Council","http://opendatacommunities.org/id/metropolitan-district-council/wolverhampton","PREMIER INN",68,"Fostering Team & Allowances","3811","Services - Supplies & Services to users","01/04/2019"
"Wolverhampton City Council","http://opendatacommunities.org/id/metropolitan-district-council/wolverhampton","FACEBK  LG3P7MW9R2",182.68,"Communications & Marketing - General","7311","Marketing \ Non-staff advertising","01/04/2019"
"Wolverhampton City Council","http://opendatacommunities.org/id/metropolitan-district-council/wolverhampton","FACEBK  A2FDEJSA82",20,"WV Active Marketing","7311","Marketing \ Non-staff advertising","01/04/2019"
"Wolverhampton City Council","http://opendatacommunities.org/id/metropolitan-district-council/wolverhampton","HOVER",8.71,"Headstart Phase 3","7372","Computing - Purchase of Software","01/04/2019"
"Wolverhampton City Council","http://opendatacommunities.org/id/metropolitan-district-council/wolverhampton","ASDA GROCERIES ONLINE",-2.43,"Upper Pendeford Farm Childrens Home","5411","Provisions (Not for resale)","01/04/2019"
"Wolverhampton City Council","http://opendatacommunities.org/id/metropolitan-district-council/wolverhampton","ASDA GROCERIES ONLINE",187.34,"Upper Pendeford Farm Childrens Home","5411","Provisions (Not for resale)","01/04/2019"
"Wolverhampton City Council","http://opendatacommunities.org/id/metropolitan-district-council/wolverhampton","ASDA GROCERIES ONLINE",37.82,"Creative Studies Delivery Area","5411","Provisions (Not for resale)","01/04/2019"
"Wolverhampton City Council","http://opendatacommunities.org/id/metropolitan-district-council/wolverhampton","Amazon.co.uk MZ0O34ZY4",12.71,"Creative Studies Delivery Area","5969","Equipment - Purchase","01/04/2019"
"Wolverhampton City Council","http://opendatacommunities.org/id/metropolitan-district-council/wolverhampton","SCREWFIX DIRECT",44.96,"Central Costs","5200","Equipment - Purchase","01/04/2019"
"Wolverhampton City Council","http://opendatacommunities.org/id/metropolitan-district-council/wolverhampton","Amazon.co.uk MZ72D8LN4",14.58,"Creative Studies Delivery Area","5969","Equipment - Purchase","01/04/2019"
"Wolverhampton City Council","http://opendatacommunities.org/id/metropolitan-district-council/wolverhampton","IZ  JMF",200,"Wolverhampton Indoor and Open Market","5999","Equipment - Purchase","01/04/2019"
"Wolverhampton City Council","http://opendatacommunities.org/id/metropolitan-district-council/wolverhampton","AMZNMktplace",20.48,"Technical Support","5999","Equipment - Purchase","01/04/2019"
"Wolverhampton City Council","http://opendatacommunities.org/id/metropolitan-district-council/wolverhampton","AMZNMktplace",9.95,"Technical Support","5999","Equipment - Purchase","01/04/2019"
"Wolverhampton City Council","http://opendatacommunities.org/id/metropolitan-district-council/wolverhampton","AMZN Mktp UK MZ2KW3NO4",9.15,"Technical Support","5942","Books","01/04/2019"
"Wolverhampton City Council","http://opendatacommunities.org/id/metropolitan-district-council/wolverhampton","AMZNMktplace",24.96,"Global Budgets","5999","Books","01/04/2019"
"Wolverhampton City Council","http://opendatacommunities.org/id/metropolitan-district-council/wolverhampton","WP-CENTRAL TAXIS L",25.8,"LAC Team","4121","Client Transport","01/04/2019"
"Wolverhampton City Council","http://opendatacommunities.org/id/metropolitan-district-council/wolverhampton","WP-CENTRAL TAXIS L",73.5,"LAC Team","4121","Client Transport","01/04/2019"
"Wolverhampton City Council","http://opendatacommunities.org/id/metropolitan-district-council/wolverhampton","ASDA GROCERIES ONLINE",0.15,"Ernest Bold Court","5411","Provisions (Not for resale)","01/04/2019"
"Wolverhampton City Council","http://opendatacommunities.org/id/metropolitan-district-council/wolverhampton","ASDA GROCERIES ONLINE",63.94,"Ernest Bold Court","5411","Provisions (Not for resale)","01/04/2019"
"Wolverhampton City Council","http://opendatacommunities.org/id/metropolitan-district-council/wolverhampton","STAGECOACH SERVICE",-15.95,"Court Team","4131","Section 17","01/04/2019"
"Wolverhampton City Council","http://opendatacommunities.org/id/metropolitan-district-council/wolverhampton","RICS COM GBP CYBS",-12.25,"Central Training","8699","Training Expenses","01/04/2019"
"Wolverhampton City Council","http://opendatacommunities.org/id/metropolitan-district-council/wolverhampton","RICS COM GBP CYBS",-12.25,"Central Training","8699","Training Expenses","01/04/2019"
"Wolverhampton City Council","http://opendatacommunities.org/id/metropolitan-district-council/wolverhampton","REDWINGS LODGE",3.5,"CIN/CP Social Work Unit - Area 8","7011","Section 17","01/04/2019"
"Wolverhampton City Council","http://opendatacommunities.org/id/metropolitan-district-council/wolverhampton","RYMAN",14.99,"Delivery & OCE Development","5943","Stationery","01/04/2019"
"Wolverhampton City Council","http://opendatacommunities.org/id/metropolitan-district-council/wolverhampton","HM PASSPORT OFFICE",85,"LAC Transitions Team","9399","Client Allowances","01/04/2019"
